Workbook

Sheet WF Feeder
BE1: Work Area in Hidden Cells
B2: Calculator for "Equivalence" or Reduced Wind Plant Collector System Impedances to Individual Feeders…. Or to One Feeder
F4: Description for this Collector System Equivalence ---> | G4: Test Wind Plant | AD4: Collector System (kV) = | AE4: 34.5
AD5: Total Turbines on this Feeder N = | AF5: =IF(AE5=0,"!",0) -> ! | AU5: Cable Lookup | BN5: Cable Database
AD6: MVA of Each Turbine = | AF6: =IF(AE6=0,"!",0) -> ! | AX6: Base kV = | AY6: =AE4 -> 34.5
AD7: Rated Phase Current (Amps) = | AE7: =AE6*1000/(AE4*SQRT(3)) -> 0 | AI7: Input Z+ | AL7: Input Zo | AO7: Calculated Values | BN7: Nomenclature | BO7: R+(Ω) | BP7: X+(Ω) | BQ7: C+(uF) | BR7: Ro(Ω) | BS7: Xo(Ω) | BT7: Co(uF) | BU7: Amps | BV7: @ºC
AG8: n' | AH8: R+ | AI8: X+ | AJ8: B+ | AK8: Ro | AL8: Xo | AM8: Bo | AN8: R+ n'^2 | AO8: X+ n'^2 | AP8: Ro n'^2 | AQ8: Xo n'^2 | AT8: Length(ft) | AU8: Choose Cable | AV8: R+ | AW8: X+ | AX8: B+ | AY8: Ro | AZ8: Xo | BA8: Bo | BG8: Work Area | BI8: 0 | BK8: 0 | BN8: Select Cable | BO8: 0 | BP8: 0 | BQ8: 0 | BR8: 0 | BS8: 0 | BT8: 0 | BU8: 0 | BV8: 0
F9: Z | G9: 1 | H9: 2 | I9: 3 | J9: 4 | K9: 5 | L9: 6 | M9: 7 | N9: 8 | O9: 9 | P9: 10 | Q9: 11 | R9: 12 | S9: 13 | T9: 14 | U9: 15 | V9: 16 | W9: 17 | X9: 18 | Y9: 19 | Z9: 20 | AA9: 21 | AB9: 22 | AD9: =IF(ISNA(VLOOKUP($BL9,$BF$9:$BH$239,2,0)),0,VLOOKUP($BL9,$BF$9:$BH$239,2,0)) -> 0 | AE9: =IF(ISNA(VLOOKUP($BL9,$BF$9:$BH$239,3,0)),"||",VLOOKUP($BL9,$BF$9:$BH$239,3,0)) -> || | AF9: =IF(AND(AE9<>"||",OR(AG9=0,AH9=0,AI9=0,AK9=0,AL9=0)),"!",0) -> 0 | AN9: =$AH9*$AG9^2 -> 0 | AO9: =$AI9*$AG9^2 -> 0 | AP9: =$AK9*$AG9^2 -> 0 | AQ9: =$AL9*$AG9^2 -> 0 | AS9: =AE9 -> || | AU9: Select Cable | AV9: =VLOOKUP($AU9,$BN$8:$BV$37,2,0)*($AT9/1000)*(100/$AY$6^2) -> 0 | AW9: =VLOOKUP($AU9,$BN$8:$BV$37,3,0)*($AT9/1000)*(100/$AY$6^2) -> 0 | AX9: =VLOOKUP($AU9,$BN$8:$BV$37,4,0)*(120*PI()*0.000001)*($AY$6^2/100)*($AT9/1000) -> 0 | AY9: =VLOOKUP($AU9,$BN$8:$BV$37,5,0)*($AT9/1000)*(100/$AY$6^2) -> 0 | AZ9: =VLOOKUP($AU9,$BN$8:$BV$37,6,0)*($AT9/1000)*(100/$AY$6^2) -> 0 | BA9: =VLOOKUP($AU9,$BN$8:$BV$37,7,0)*(120*PI()*0.000001)*($AY$6^2/100)*($AT9/1000) -> 0 | BF9: =IF(BJ9>BJ8,BJ9,0) -> 0 | BG9: =IF(BH9<>"(Z) ","Input -->","") ->  | BH9: =CONCATENATE("(Z) ",$G$11) -> (Z) | BI9: =IF(BH9="(Z) ", 0,1) -> 0 | BJ9: =IF(BI9=1,1,0) -> 0 | BL9: 1 | BN9: 1/0 AWG Al Trefoil | BO9: 0.213 | BP9: 0.052 | BQ9: 0.0391 | BR9: 0.408 | BS9: 0.033 | BT9: 0.0391 | BU9: 221 | BV9: 90
D10: Equivalent Feeder and Turbine: | F10: 1 | AD10: =IF(ISNA(VLOOKUP($BL10,$BF$9:$BH$239,2,0)),0,VLOOKUP($BL10,$BF$9:$BH$239,2,0)) -> 0 | AE10: =IF(ISNA(VLOOKUP($BL10,$BF$9:$BH$239,3,0)),"||",VLOOKUP($BL10,$BF$9:$BH$239,3,0)) -> || | AF10: =IF(AND(AE10<>"||",OR(AG10=0,AH10=0,AI10=0,AK10=0,AL10=0)),"!",0) -> 0 | AN10: =$AH10*$AG10^2 -> 0 | AO10: =$AI10*$AG10^2 -> 0 | AP10: =$AK10*$AG10^2 -> 0 | AQ10: =$AL10*$AG10^2 -> 0 | AS10: || | AU10: Select Cable | AV10: 0 | AW10: 0 | AX10: 0 | AY10: 0 | AZ10: 0 | BA10: 0 | BF10: =IF(BJ10>BJ9,BJ10,0) -> 0 | BG10: =IF(BH10<>"(Z) ","Input -->","") ->  | BH10: =CONCATENATE("(Z) ",$G$12) -> (Z) | BI10: =IF(BH10="(Z) ", 0,1) -> 0 | BJ10: =IF(BI10=1,BJ9+1,BJ9) -> 0 | BL10: 2 | BN10: 2/0 AWG Al Trefoil | BO10: 0.169 | BP10: 0.05 | BQ10: 0.0419 | BR10: 0.325 | BS10: 0.032 | BT10: 0.0419 | BU10: 251 | BV10: 90
B11: MVA = | C11: =AE5*AE6 -> 0 | F11: 2 | G11: =IF(H$10<>0,CONCATENATE(G$9,"-",$F11),"") ->  | AD11: 0 | AE11: || | AF11: 0 | AN11: 0 | AO11: 0 | AP11: 0 | AQ11: 0 | AS11: || | AU11: Select Cable | AV11: 0 | AW11: 0 | AX11: 0 | AY11: 0 | AZ11: 0 | BA11: 0 | BF11: =IF(BJ11>BJ10,BJ11,0) -> 0 | BG11: =IF(BH11<>"(Z) ","Input -->","") ->  | BH11: =CONCATENATE("(Z) ",$G$13) -> (Z) | BI11: =IF(BH11="(Z) ", 0,1) -> 0 | BJ11: =IF(BI11=1,BJ10+1,BJ10) -> 0 | BL11: 3 | BN11: 3/0 AWG Al Trefoil | BO11: 0.135 | BP11: 0.049 | BQ11: 0.0451 | BR11: 0.259 | BS11: 0.03 | BT11: 0.0451 | BU11: 286 | BV11: 90
B12: Irated (amps) = | C12: =AE5*AE7 -> 0 | F12: 3 | G12: =IF(I$10<>0,CONCATENATE(G$9,"-",$F12),"") ->  | H12: =IF(I$11<>0,CONCATENATE(H$9,"-",$F12),"") ->  | AD12: 0 | AE12: || | AF12: 0 | AN12: 0 | AO12: 0 | AP12: 0 | AQ12: 0 | AS12: || | AU12: Select Cable | AV12: 0 | AW12: 0 | AX12: 0 | AY12: 0 | AZ12: 0 | BA12: 0 | BF12: =IF(BJ12>BJ11,BJ12,0) -> 0 | BH12: =CONCATENATE("(Z) ",$G$14) -> (Z) | BI12: =IF(BH12="(Z) ", 0,1) -> 0 | BJ12: 0 | BL12: 4 | BN12: 4/0 AWG Al Trefoil | BO12: 0.109 | BP12: 0.047 | BQ12: 0.0486 | BR12: 0.207 | BS12: 0.029 | BT12: 0.0486 | BU12: 327 | BV12: 90
F13: 4 | G13: =IF(J$10<>0,CONCATENATE(G$9,"-",$F13),"") ->  | H13: =IF(J$11<>0,CONCATENATE(H$9,"-",$F13),"") ->  | I13: =IF(J$12<>0,CONCATENATE(I$9,"-",$F13),"") ->  | AD13: 0 | AE13: || | AF13: 0 | AN13: 0 | AO13: 0 | AP13: 0 | AQ13: 0 | AS13: || | AU13: Select Cable | AV13: 0 | AW13: 0 | AX13: 0 | AY13: 0 | AZ13: 0 | BA13: 0 | BF13: =IF(BJ13>BJ12,BJ13,0) -> 0 | BH13: =CONCATENATE("(Z) ",$G$15) -> (Z) | BI13: =IF(BH13="(Z) ", 0,1) -> 0 | BJ13: 0 | BL13: 5 | BN13: 250 KCM Al Trefoil | BO13: 0.09 | BP13: 0.045 | BQ13: 0.0519 | BR13: 0.334 | BS13: 0.027 | BT13: 0.0519 | BU13: 359 | BV13: 90
F14: 5 | G14: =IF(K$10<>0,CONCATENATE(G$9,"-",$F14),"") ->  | H14: =IF(K$11<>0,CONCATENATE(H$9,"-",$F14),"") ->  | I14: =IF(K$12<>0,CONCATENATE(I$9,"-",$F14),"") ->  | J14: =IF(K$13<>0,CONCATENATE(J$9,"-",$F14),"") ->  | AD14: 0 | AE14: || | AF14: 0 | AN14: =$AH14*$AG14^2 -> 0 | AO14: 0 | AP14: 0 | AQ14: 0 | AS14: || | AU14: Select Cable | AV14: 0 | AW14: 0 | AX14: 0 | AY14: 0 | AZ14: 0 | BA14: 0 | BF14: 0 | BH14: =CONCATENATE("(Z) ",$G$16) -> (Z) | BI14: =IF(BH14="(Z) ", 0,1) -> 0 | BJ14: 0 | BL14: 6 | BN14: 350 KCM Al Trefoil | BO14: 0.066 | BP14: 0.043 | BQ14: 0.0583 | BR14: 0.241 | BS14: 0.025 | BT14: 0.0583 | BU14: 432 | BV14: 90
C15: =CONCATENATE($AE$4,"kV") -> 34.5kV | F15: 6 | G15: =IF(L$10<>0,CONCATENATE(G$9,"-",$F15),"") ->  | H15: =IF(L$11<>0,CONCATENATE(H$9,"-",$F15),"") ->  | I15: =IF(L$12<>0,CONCATENATE(I$9,"-",$F15),"") ->  | J15: =IF(L$13<>0,CONCATENATE(J$9,"-",$F15),"") ->  | K15: =IF(L$14<>0,CONCATENATE(K$9,"-",$F15),"") ->  | AD15: 0 | AE15: || | AF15: 0 | AN15: 0 | AO15: =$AI15*$AG15^2 -> 0 | AP15: 0 | AQ15: 0 | AS15: || | AU15: Select Cable | AV15: 0 | AW15: 0 | AX15: 0 | AY15: 0 | AZ15: 0 | BA15: 0 | BF15: 0 | BH15: =CONCATENATE("(Z) ",$G$17) -> (Z) | BI15: 0 | BJ15: 0 | BL15: 7 | BN15: 500 KCM Al Trefoil | BO15: 0.048 | BP15: 0.041 | BQ15: 0.0662 | BR15: 0.173 | BS15: 0.023 | BT15: 0.0662 | BU15: 521 | BV15: 90
F16: 7 | G16: =IF(M$10<>0,CONCATENATE(G$9,"-",$F16),"") ->  | H16: =IF(M$11<>0,CONCATENATE(H$9,"-",$F16),"") ->  | I16: =IF(M$12<>0,CONCATENATE(I$9,"-",$F16),"") ->  | J16: =IF(M$13<>0,CONCATENATE(J$9,"-",$F16),"") ->  | K16: =IF(M$14<>0,CONCATENATE(K$9,"-",$F16),"") ->  | L16: =IF(M$15<>0,CONCATENATE(L$9,"-",$F16),"") ->  | AD16: 0 | AE16: || | AF16: 0 | AN16: 0 | AO16: 0 | AP16: 0 | AQ16: 0 | AS16: || | AU16: Select Cable | AV16: 0 | AW16: 0 | AX16: 0 | AY16: 0 | AZ16: 0 | BA16: 0 | BF16: 0 | BH16: =CONCATENATE("(Z) ",$G$18) -> (Z) | BI16: 0 | BJ16: 0 | BL16: 8 | BN16: 750 KCM Al Trefoil | BO16: 0.034 | BP16: 0.039 | BQ16: 0.0775 | BR16: 0.116 | BS16: 0.021 | BT16: 0.0775 | BU16: 639 | BV16: 90
D17: pu | F17: 8 | G17: =IF(N$10<>0,CONCATENATE(G$9,"-",$F17),"") ->  | H17: =IF(N$11<>0,CONCATENATE(H$9,"-",$F17),"") ->  | I17: =IF(N$12<>0,CONCATENATE(I$9,"-",$F17),"") ->  | J17: =IF(N$13<>0,CONCATENATE(J$9,"-",$F17),"") ->  | K17: =IF(N$14<>0,CONCATENATE(K$9,"-",$F17),"") ->  | L17: =IF(N$15<>0,CONCATENATE(L$9,"-",$F17),"") ->  | M17: =IF(N$16<>0,CONCATENATE(M$9,"-",$F17),"") ->  | AD17: 0 | AE17: || | AF17: 0 | AN17: 0 | AO17: 0 | AP17: 0 | AQ17: 0 | AS17: || | AU17: Select Cable | AV17: 0 | AW17: 0 | AX17: 0 | AY17: 0 | AZ17: 0 | BA17: 0 | BF17: 0 | BH17: =CONCATENATE("(Z) ",$G$19) -> (Z) | BI17: 0 | BJ17: 0 | BL17: 9 | BN17: 1000 KCM Al Trefoil | BO17: 0.028 | BP17: 0.037 | BQ17: 0.0865 | BR17: 0.088 | BS17: 0.02 | BT17: 0.0865 | BU17: 726 | BV17: 90
C18: R+ = | D18: =AN241 ->  | F18: 9 | G18: =IF(O$10<>0,CONCATENATE(G$9,"-",$F18),"") ->  | H18: =IF(O$11<>0,CONCATENATE(H$9,"-",$F18),"") ->  | I18: =IF(O$12<>0,CONCATENATE(I$9,"-",$F18),"") ->  | J18: =IF(O$13<>0,CONCATENATE(J$9,"-",$F18),"") ->  | K18: =IF(O$14<>0,CONCATENATE(K$9,"-",$F18),"") ->  | L18: =IF(O$15<>0,CONCATENATE(L$9,"-",$F18),"") ->  | M18: =IF(O$16<>0,CONCATENATE(M$9,"-",$F18),"") ->  | N18: =IF(O$17<>0,CONCATENATE(N$9,"-",$F18),"") ->  | AD18: 0 | AE18: || | AF18: 0 | AN18: 0 | AO18: 0 | AP18: 0 | AQ18: 0 | AS18: || | AU18: Select Cable | AV18: 0 | AW18: 0 | AX18: 0 | AY18: 0 | AZ18: 0 | BA18: 0 | BF18: 0 | BH18: =CONCATENATE("(Z) ",$G$20) -> (Z) | BI18: 0 | BJ18: 0 | BL18: 10 | BN18: 1250 KCM Al Trefoil | BO18: 0.025 | BP18: 0.035 | BQ18: 0.0946 | BR18: 0.07 | BS18: 0.019 | BT18: 0.0946 | BU18: 790 | BV18: 90
C19: X+ = | D19: =AO241 ->  | F19: 10 | G19: =IF(P$10<>0,CONCATENATE(G$9,"-",$F19),"") ->  | H19: =IF(P$11<>0,CONCATENATE(H$9,"-",$F19),"") ->  | I19: =IF(P$12<>0,CONCATENATE(I$9,"-",$F19),"") ->  | J19: =IF(P$13<>0,CONCATENATE(J$9,"-",$F19),"") ->  | K19: =IF(P$14<>0,CONCATENATE(K$9,"-",$F19),"") ->  | L19: =IF(P$15<>0,CONCATENATE(L$9,"-",$F19),"") ->  | M19: =IF(P$16<>0,CONCATENATE(M$9,"-",$F19),"") ->  | N19: =IF(P$17<>0,CONCATENATE(N$9,"-",$F19),"") ->  | O19: =IF(P$18<>0,CONCATENATE(O$9,"-",$F19),"") ->  | AD19: 0 | AE19: || | AF19: 0 | AN19: 0 | AO19: 0 | AP19: 0 | AQ19: 0 | AS19: || | AU19: Select Cable | AV19: 0 | AW19: 0 | AX19: 0 | AY19: 0 | AZ19: 0 | BA19: 0 | BF19: 0 | BH19: =CONCATENATE("(Z) ",$G$21) -> (Z) | BI19: 0 | BJ19: 0 | BL19: 11 | BN19: 1500 KCM Al Trefoil | BO19: 0.02 | BP19: 0.035 | BQ19: 0.1017 | BR19: 0.103 | BS19: 0.017 | BT19: 0.1017 | BU19: 893 | BV19: 90
C20: B+ = | D20: =AJ241 -> 0 | F20: 11 | G20: =IF(Q$10<>0,CONCATENATE(G$9,"-",$F20),"") ->  | H20: =IF(Q$11<>0,CONCATENATE(H$9,"-",$F20),"") ->  | I20: =IF(Q$12<>0,CONCATENATE(I$9,"-",$F20),"") ->  | J20: =IF(Q$13<>0,CONCATENATE(J$9,"-",$F20),"") ->  | K20: =IF(Q$14<>0,CONCATENATE(K$9,"-",$F20),"") ->  | L20: =IF(Q$15<>0,CONCATENATE(L$9,"-",$F20),"") ->  | M20: =IF(Q$16<>0,CONCATENATE(M$9,"-",$F20),"") ->  | N20: =IF(Q$17<>0,CONCATENATE(N$9,"-",$F20),"") ->  | O20: =IF(Q$18<>0,CONCATENATE(O$9,"-",$F20),"") ->  | P20: =IF(Q$19<>0,CONCATENATE(P$9,"-",$F20),"") ->  | AD20: 0 | AE20: || | AF20: 0 | AN20: 0 | AO20: 0 | AP20: 0 | AQ20: 0 | AS20: || | AU20: Select Cable | AV20: 0 | AW20: 0 | AX20: 0 | AY20: 0 | AZ20: 0 | BA20: 0 | BF20: 0 | BH20: =CONCATENATE("(Z) ",$G$22) -> (Z) | BI20: 0 | BJ20: 0 | BL20: 12
C21: B+/2 = | D21: =D20/2 -> 0 | F21: 12 | G21: =IF(R$10<>0,CONCATENATE(G$9,"-",$F21),"") ->  | H21: =IF(R$11<>0,CONCATENATE(H$9,"-",$F21),"") ->  | I21: =IF(R$12<>0,CONCATENATE(I$9,"-",$F21),"") ->  | J21: =IF(R$13<>0,CONCATENATE(J$9,"-",$F21),"") ->  | K21: =IF(R$14<>0,CONCATENATE(K$9,"-",$F21),"") ->  | L21: =IF(R$15<>0,CONCATENATE(L$9,"-",$F21),"") ->  | M21: =IF(R$16<>0,CONCATENATE(M$9,"-",$F21),"") ->  | N21: =IF(R$17<>0,CONCATENATE(N$9,"-",$F21),"") ->  | O21: =IF(R$18<>0,CONCATENATE(O$9,"-",$F21),"") ->  | P21: =IF(R$19<>0,CONCATENATE(P$9,"-",$F21),"") ->  | Q21: =IF(R$20<>0,CONCATENATE(Q$9,"-",$F21),"") ->  | AD21: 0 | AE21: || | AF21: 0 | AN21: 0 | AO21: 0 | AP21: 0 | AQ21: 0 | AS21: || | AU21: Select Cable | AV21: 0 | AW21: 0 | AX21: 0 | AY21: 0 | AZ21: 0 | BA21: 0 | BF21: 0 | BH21: =CONCATENATE("(Z) ",$G$23) -> (Z) | BI21: 0 | BJ21: 0 | BL21: 13
F22: 13 | G22: =IF(S$10<>0,CONCATENATE(G$9,"-",$F22),"") ->  | H22: =IF(S$11<>0,CONCATENATE(H$9,"-",$F22),"") ->  | I22: =IF(S$12<>0,CONCATENATE(I$9,"-",$F22),"") ->  | J22: =IF(S$13<>0,CONCATENATE(J$9,"-",$F22),"") ->  | K22: =IF(S$14<>0,CONCATENATE(K$9,"-",$F22),"") ->  | L22: =IF(S$15<>0,CONCATENATE(L$9,"-",$F22),"") ->  | M22: =IF(S$16<>0,CONCATENATE(M$9,"-",$F22),"") ->  | N22: =IF(S$17<>0,CONCATENATE(N$9,"-",$F22),"") ->  | O22: =IF(S$18<>0,CONCATENATE(O$9,"-",$F22),"") ->  | P22: =IF(S$19<>0,CONCATENATE(P$9,"-",$F22),"") ->  | Q22: =IF(S$20<>0,CONCATENATE(Q$9,"-",$F22),"") ->  | R22: =IF(S$21<>0,CONCATENATE(R$9,"-",$F22),"") ->  | AD22: 0 | AE22: || | AF22: 0 | AN22: 0 | AO22: 0 | AP22: 0 | AQ22: 0 | AS22: || | AU22: Select Cable | AV22: 0 | AW22: 0 | AX22: 0 | AY22: 0 | AZ22: 0 | BA22: 0 | BF22: 0 | BH22: =CONCATENATE("(Z) ",$G$24) -> (Z) | BI22: 0 | BJ22: 0 | BL22: 14
F23: 14 | G23: =IF(T$10<>0,CONCATENATE(G$9,"-",$F23),"") ->  | H23: =IF(T$11<>0,CONCATENATE(H$9,"-",$F23),"") ->  | I23: =IF(T$12<>0,CONCATENATE(I$9,"-",$F23),"") ->  | J23: =IF(T$13<>0,CONCATENATE(J$9,"-",$F23),"") ->  | K23: =IF(T$14<>0,CONCATENATE(K$9,"-",$F23),"") ->  | L23: =IF(T$15<>0,CONCATENATE(L$9,"-",$F23),"") ->  | M23: =IF(T$16<>0,CONCATENATE(M$9,"-",$F23),"") ->  | N23: =IF(T$17<>0,CONCATENATE(N$9,"-",$F23),"") ->  | O23: =IF(T$18<>0,CONCATENATE(O$9,"-",$F23),"") ->  | P23: =IF(T$19<>0,CONCATENATE(P$9,"-",$F23),"") ->  | Q23: =IF(T$20<>0,CONCATENATE(Q$9,"-",$F23),"") ->  | R23: =IF(T$21<>0,CONCATENATE(R$9,"-",$F23),"") ->  | S23: =IF(T$22<>0,CONCATENATE(S$9,"-",$F23),"") ->  | AD23: 0 | AE23: || | AF23: 0 | AN23: 0 | AO23: 0 | AP23: 0 | AQ23: 0 | AS23: || | AU23: Select Cable | AV23: 0 | AW23: 0 | AX23: 0 | AY23: 0 | AZ23: 0 | BA23: 0 | BF23: 0 | BH23: =CONCATENATE("(Z) ",$G$25) -> (Z) | BI23: 0 | BJ23: 0 | BL23: 15
F24: 15 | G24: =IF(U$10<>0,CONCATENATE(G$9,"-",$F24),"") ->  | H24: =IF(U$11<>0,CONCATENATE(H$9,"-",$F24),"") ->  | I24: =IF(U$12<>0,CONCATENATE(I$9,"-",$F24),"") ->  | J24: =IF(U$13<>0,CONCATENATE(J$9,"-",$F24),"") ->  | K24: =IF(U$14<>0,CONCATENATE(K$9,"-",$F24),"") ->  | L24: =IF(U$15<>0,CONCATENATE(L$9,"-",$F24),"") ->  | M24: =IF(U$16<>0,CONCATENATE(M$9,"-",$F24),"") ->  | N24: =IF(U$17<>0,CONCATENATE(N$9,"-",$F24),"") ->  | O24: =IF(U$18<>0,CONCATENATE(O$9,"-",$F24),"") ->  | P24: =IF(U$19<>0,CONCATENATE(P$9,"-",$F24),"") ->  | Q24: =IF(U$20<>0,CONCATENATE(Q$9,"-",$F24),"") ->  | R24: =IF(U$21<>0,CONCATENATE(R$9,"-",$F24),"") ->  | S24: =IF(U$22<>0,CONCATENATE(S$9,"-",$F24),"") ->  | T24: =IF(U$23<>0,CONCATENATE(T$9,"-",$F24),"") ->  | AD24: 0 | AE24: || | AF24: 0 | AN24: 0 | AO24: 0 | AP24: 0 | AQ24: 0 | AS24: || | AU24: Select Cable | AV24: 0 | AW24: 0 | AX24: 0 | AY24: 0 | AZ24: 0 | BA24: 0 | BF24: 0 | BH24: =CONCATENATE("(Z) ",$G$26) -> (Z) | BI24: 0 | BJ24: 0 | BL24: 16
F25: 16 | G25: =IF(V$10<>0,CONCATENATE(G$9,"-",$F25),"") ->  | H25: =IF(V$11<>0,CONCATENATE(H$9,"-",$F25),"") ->  | I25: =IF(V$12<>0,CONCATENATE(I$9,"-",$F25),"") ->  | J25: =IF(V$13<>0,CONCATENATE(J$9,"-",$F25),"") ->  | K25: =IF(V$14<>0,CONCATENATE(K$9,"-",$F25),"") ->  | L25: =IF(V$15<>0,CONCATENATE(L$9,"-",$F25),"") ->  | M25: =IF(V$16<>0,CONCATENATE(M$9,"-",$F25),"") ->  | N25: =IF(V$17<>0,CONCATENATE(N$9,"-",$F25),"") ->  | O25: =IF(V$18<>0,CONCATENATE(O$9,"-",$F25),"") ->  | P25: =IF(V$19<>0,CONCATENATE(P$9,"-",$F25),"") ->  | Q25: =IF(V$20<>0,CONCATENATE(Q$9,"-",$F25),"") ->  | R25: =IF(V$21<>0,CONCATENATE(R$9,"-",$F25),"") ->  | S25: =IF(V$22<>0,CONCATENATE(S$9,"-",$F25),"") ->  | T25: =IF(V$23<>0,CONCATENATE(T$9,"-",$F25),"") ->  | U25: =IF(V$24<>0,CONCATENATE(U$9,"-",$F25),"") ->  | AD25: 0 | AE25: || | AF25: 0 | AN25: 0 | AO25: 0 | AP25: 0 | AQ25: 0 | AS25: || | AU25: Select Cable | AV25: 0 | AW25: 0 | AX25: 0 | AY25: 0 | AZ25: 0 | BA25: 0 | BF25: 0 | BH25: =CONCATENATE("(Z) ",$G$27) -> (Z) | BI25: 0 | BJ25: 0 | BL25: 17
F26: 17 | G26: =IF(W$10<>0,CONCATENATE(G$9,"-",$F26),"") ->  | H26: =IF(W$11<>0,CONCATENATE(H$9,"-",$F26),"") ->  | I26: =IF(W$12<>0,CONCATENATE(I$9,"-",$F26),"") ->  | J26: =IF(W$13<>0,CONCATENATE(J$9,"-",$F26),"") ->  | K26: =IF(W$14<>0,CONCATENATE(K$9,"-",$F26),"") ->  | L26: =IF(W$15<>0,CONCATENATE(L$9,"-",$F26),"") ->  | M26: =IF(W$16<>0,CONCATENATE(M$9,"-",$F26),"") ->  | N26: =IF(W$17<>0,CONCATENATE(N$9,"-",$F26),"") ->  | O26: =IF(W$18<>0,CONCATENATE(O$9,"-",$F26),"") ->  | P26: =IF(W$19<>0,CONCATENATE(P$9,"-",$F26),"") ->  | Q26: =IF(W$20<>0,CONCATENATE(Q$9,"-",$F26),"") ->  | R26: =IF(W$21<>0,CONCATENATE(R$9,"-",$F26),"") ->  | S26: =IF(W$22<>0,CONCATENATE(S$9,"-",$F26),"") ->  | T26: =IF(W$23<>0,CONCATENATE(T$9,"-",$F26),"") ->  | U26: =IF(W$24<>0,CONCATENATE(U$9,"-",$F26),"") ->  | V26: =IF(W$25<>0,CONCATENATE(V$9,"-",$F26),"") ->  | AD26: 0 | AE26: || | AF26: 0 | AN26: 0 | AO26: 0 | AP26: 0 | AQ26: 0 | AS26: || | AU26: Select Cable | AV26: 0 | AW26: 0 | AX26: 0 | AY26: 0 | AZ26: 0 | BA26: 0 | BF26: 0 | BH26: =CONCATENATE("(Z) ",$G$28) -> (Z) | BI26: 0 | BJ26: 0 | BL26: 18
D27: pu | F27: 18 | G27: =IF(X$10<>0,CONCATENATE(G$9,"-",$F27),"") ->  | H27: =IF(X$11<>0,CONCATENATE(H$9,"-",$F27),"") ->  | I27: =IF(X$12<>0,CONCATENATE(I$9,"-",$F27),"") ->  | J27: =IF(X$13<>0,CONCATENATE(J$9,"-",$F27),"") ->  | K27: =IF(X$14<>0,CONCATENATE(K$9,"-",$F27),"") ->  | L27: =IF(X$15<>0,CONCATENATE(L$9,"-",$F27),"") ->  | M27: =IF(X$16<>0,CONCATENATE(M$9,"-",$F27),"") ->  | N27: =IF(X$17<>0,CONCATENATE(N$9,"-",$F27),"") ->  | O27: =IF(X$18<>0,CONCATENATE(O$9,"-",$F27),"") ->  | P27: =IF(X$19<>0,CONCATENATE(P$9,"-",$F27),"") ->  | Q27: =IF(X$20<>0,CONCATENATE(Q$9,"-",$F27),"") ->  | R27: =IF(X$21<>0,CONCATENATE(R$9,"-",$F27),"") ->  | S27: =IF(X$22<>0,CONCATENATE(S$9,"-",$F27),"") ->  | T27: =IF(X$23<>0,CONCATENATE(T$9,"-",$F27),"") ->  | U27: =IF(X$24<>0,CONCATENATE(U$9,"-",$F27),"") ->  | V27: =IF(X$25<>0,CONCATENATE(V$9,"-",$F27),"") ->  | W27: =IF(X$26<>0,CONCATENATE(W$9,"-",$F27),"") ->  | AD27: 0 | AE27: || | AF27: 0 | AN27: 0 | AO27: 0 | AP27: 0 | AQ27: 0 | AS27: || | AU27: Select Cable | AV27: 0 | AW27: 0 | AX27: 0 | AY27: 0 | AZ27: 0 | BA27: 0 | BF27: 0 | BH27: =CONCATENATE("(Z) ",$G$29) -> (Z) | BI27: 0 | BJ27: 0 | BL27: 19
C28: Ro = | D28: =AP241 ->  | F28: 19 | G28: =IF(Y10<>0,CONCATENATE(G$9,"-",$F28),"") ->  | H28: =IF(Y$11<>0,CONCATENATE(H$9,"-",$F28),"") ->  | I28: =IF(Y$12<>0,CONCATENATE(I$9,"-",$F28),"") ->  | J28: =IF(Y$13<>0,CONCATENATE(J$9,"-",$F28),"") ->  | K28: =IF(Y$14<>0,CONCATENATE(K$9,"-",$F28),"") ->  | L28: =IF(Y$15<>0,CONCATENATE(L$9,"-",$F28),"") ->  | M28: =IF(Y$16<>0,CONCATENATE(M$9,"-",$F28),"") ->  | N28: =IF(Y$17<>0,CONCATENATE(N$9,"-",$F28),"") ->  | O28: =IF(Y$18<>0,CONCATENATE(O$9,"-",$F28),"") ->  | P28: =IF(Y$19<>0,CONCATENATE(P$9,"-",$F28),"") ->  | Q28: =IF(Y$20<>0,CONCATENATE(Q$9,"-",$F28),"") ->  | R28: =IF(Y$21<>0,CONCATENATE(R$9,"-",$F28),"") ->  | S28: =IF(Y$22<>0,CONCATENATE(S$9,"-",$F28),"") ->  | T28: =IF(Y$23<>0,CONCATENATE(T$9,"-",$F28),"") ->  | U28: =IF(Y$24<>0,CONCATENATE(U$9,"-",$F28),"") ->  | V28: =IF(Y$25<>0,CONCATENATE(V$9,"-",$F28),"") ->  | W28: =IF(Y$26<>0,CONCATENATE(W$9,"-",$F28),"") ->  | X28: =IF(Y$27<>0,CONCATENATE(X$9,"-",$F28),"") ->  | AD28: 0 | AE28: || | AF28: 0 | AN28: 0 | AO28: 0 | AP28: 0 | AQ28: 0 | AS28: || | AU28: Select Cable | AV28: 0 | AW28: 0 | AX28: 0 | AY28: 0 | AZ28: 0 | BA28: 0 | BF28: 0 | BH28: =CONCATENATE("(Z) ",$G$30) -> (Z) | BI28: 0 | BJ28: 0 | BL28: 20
C29: Xo = | D29: =AQ241 ->  | F29: 20 | G29: =IF(Z$10<>0,CONCATENATE(G$9,"-",$F29),"") ->  | H29: =IF(Z$11<>0,CONCATENATE(H$9,"-",$F29),"") ->  | I29: =IF(Z$12<>0,CONCATENATE(I$9,"-",$F29),"") ->  | J29: =IF(Z$13<>0,CONCATENATE(J$9,"-",$F29),"") ->  | K29: =IF(Z$14<>0,CONCATENATE(K$9,"-",$F29),"") ->  | L29: =IF(Z$15<>0,CONCATENATE(L$9,"-",$F29),"") ->  | M29: =IF(Z$16<>0,CONCATENATE(M$9,"-",$F29),"") ->  | N29: =IF(Z$17<>0,CONCATENATE(N$9,"-",$F29),"") ->  | O29: =IF(Z$18<>0,CONCATENATE(O$9,"-",$F29),"") ->  | P29: =IF(Z$19<>0,CONCATENATE(P$9,"-",$F29),"") ->  | Q29: =IF(Z$20<>0,CONCATENATE(Q$9,"-",$F29),"") ->  | R29: =IF(Z$21<>0,CONCATENATE(R$9,"-",$F29),"") ->  | S29: =IF(Z$22<>0,CONCATENATE(S$9,"-",$F29),"") ->  | T29: =IF(Z$23<>0,CONCATENATE(T$9,"-",$F29),"") ->  | U29: =IF(Z$24<>0,CONCATENATE(U$9,"-",$F29),"") ->  | V29: =IF(Z$25<>0,CONCATENATE(V$9,"-",$F29),"") ->  | W29: =IF(Z$26<>0,CONCATENATE(W$9,"-",$F29),"") ->  | X29: =IF(Z$27<>0,CONCATENATE(X$9,"-",$F29),"") ->  | Y29: =IF(Z$28<>0,CONCATENATE(Y$9,"-",$F29),"") ->  | AD29: 0 | AE29: || | AF29: 0 | AN29: 0 | AO29: 0 | AP29: 0 | AQ29: 0 | AS29: || | AU29: Select Cable | AV29: 0 | AW29: 0 | AX29: 0 | AY29: 0 | AZ29: 0 | BA29: 0 | BF29: 0 | BH29: =CONCATENATE("(Z) ",$G$31) -> (Z) | BI29: 0 | BJ29: 0 | BL29: 21
C30: Bo = | D30: =AM241 -> 0 | F30: 21 | G30: =IF(AA$10<>0,CONCATENATE(G$9,"-",$F30),"") ->  | H30: =IF(AA$11<>0,CONCATENATE(H$9,"-",$F30),"") ->  | I30: =IF(AA$12<>0,CONCATENATE(I$9,"-",$F30),"") ->  | J30: =IF(AA$13<>0,CONCATENATE(J$9,"-",$F30),"") ->  | K30: =IF(AA$14<>0,CONCATENATE(K$9,"-",$F30),"") ->  | L30: =IF(AA$15<>0,CONCATENATE(L$9,"-",$F30),"") ->  | M30: =IF(AA$16<>0,CONCATENATE(M$9,"-",$F30),"") ->  | N30: =IF(AA$17<>0,CONCATENATE(N$9,"-",$F30),"") ->  | O30: =IF(AA$18<>0,CONCATENATE(O$9,"-",$F30),"") ->  | P30: =IF(AA$19<>0,CONCATENATE(P$9,"-",$F30),"") ->  | Q30: =IF(AA$20<>0,CONCATENATE(Q$9,"-",$F30),"") ->  | R30: =IF(AA$21<>0,CONCATENATE(R$9,"-",$F30),"") ->  | S30: =IF(AA$22<>0,CONCATENATE(S$9,"-",$F30),"") ->  | T30: =IF(AA$23<>0,CONCATENATE(T$9,"-",$F30),"") ->  | U30: =IF(AA$24<>0,CONCATENATE(U$9,"-",$F30),"") ->  | V30: =IF(AA$25<>0,CONCATENATE(V$9,"-",$F30),"") ->  | W30: =IF(AA$26<>0,CONCATENATE(W$9,"-",$F30),"") ->  | X30: =IF(AA$27<>0,CONCATENATE(X$9,"-",$F30),"") ->  | Y30: =IF(AA$28<>0,CONCATENATE(Y$9,"-",$F30),"") ->  | Z30: =IF(AA$29<>0,CONCATENATE(Z$9,"-",$F30),"") ->  | AD30: 0 | AE30: || | AF30: 0 | AN30: 0 | AO30: 0 | AP30: 0 | AQ30: 0 | AS30: || | AU30: Select Cable | AV30: 0 | AW30: 0 | AX30: 0 | AY30: 0 | AZ30: 0 | BA30: 0 | BF30: 0 | BH30: =CONCATENATE("(Z) ",$H$12) -> (Z) | BI30: 0 | BJ30: 0 | BL30: 22
C31: Bo/2 = | D31: =D30/2 -> 0 | F31: 22 | G31: =IF(AB$10<>0,CONCATENATE(G$9,"-",$F31),"") ->  | H31: =IF(AB$11<>0,CONCATENATE(H$9,"-",$F31),"") ->  | I31: =IF(AB$12<>0,CONCATENATE(I$9,"-",$F31),"") ->  | J31: =IF(AB$13<>0,CONCATENATE(J$9,"-",$F31),"") ->  | K31: =IF(AB$14<>0,CONCATENATE(K$9,"-",$F31),"") ->  | L31: =IF(AB$15<>0,CONCATENATE(L$9,"-",$F31),"") ->  | M31: =IF(AB$16<>0,CONCATENATE(M$9,"-",$F31),"") ->  | N31: =IF(AB$17<>0,CONCATENATE(N$9,"-",$F31),"") ->  | O31: =IF(AB$18<>0,CONCATENATE(O$9,"-",$F31),"") ->  | P31: =IF(AB$19<>0,CONCATENATE(P$9,"-",$F31),"") ->  | Q31: =IF(AB$20<>0,CONCATENATE(Q$9,"-",$F31),"") ->  | R31: =IF(AB$21<>0,CONCATENATE(R$9,"-",$F31),"") ->  | S31: =IF(AB$22<>0,CONCATENATE(S$9,"-",$F31),"") ->  | T31: =IF(AB$23<>0,CONCATENATE(T$9,"-",$F31),"") ->  | U31: =IF(AB$24<>0,CONCATENATE(U$9,"-",$F31),"") ->  | V31: =IF(AB$25<>0,CONCATENATE(V$9,"-",$F31),"") ->  | W31: =IF(AB$26<>0,CONCATENATE(W$9,"-",$F31),"") ->  | X31: =IF(AB$27<>0,CONCATENATE(X$9,"-",$F31),"") ->  | Y31: =IF(AB$28<>0,CONCATENATE(Y$9,"-",$F31),"") ->  | AA31: =IF(AB$30<>0,CONCATENATE(AA$9,"-",$F31),"") ->  | AD31: 0 | AE31: || | AF31: 0 | AN31: 0 | AO31: 0 | AP31: 0 | AQ31: 0 | AS31: || | AU31: Select Cable | AV31: 0 | AW31: 0 | AX31: 0 | AY31: 0 | AZ31: 0 | BA31: 0 | BF31: 0 | BH31: =CONCATENATE("(Z) ",$H$13) -> (Z) | BI31: 0 | BJ31: 0 | BL31: 23
AD32: 0 | AE32: || | AF32: 0 | AN32: 0 | AO32: 0 | AP32: 0 | AQ32: 0 | AS32: || | AU32: Select Cable | AV32: 0 | AW32: 0 | AX32: 0 | AY32: 0 | AZ32: 0 | BA32: 0 | BF32: 0 | BH32: =CONCATENATE("(Z) ",$H$14) -> (Z) | BI32: 0 | BJ32: 0 | BL32: 24
AD33: 0 | AE33: || | AF33: 0 | AN33: 0 | AO33: 0 | AP33: 0 | AQ33: 0 | AS33: || | AU33: Select Cable | AV33: 0 | AW33: 0 | AX33: 0 | AY33: 0 | AZ33: 0 | BA33: 0 | BF33: 0 | BH33: =CONCATENATE("(Z) ",$H$15) -> (Z) | BI33: 0 | BJ33: 0 | BL33: 25
AD34: 0 | AE34: || | AF34: 0 | AN34: 0 | AO34: 0 | AP34: 0 | AQ34: 0 | AS34: || | AU34: Select Cable | AV34: 0 | AW34: 0 | AX34: 0 | AY34: 0 | AZ34: 0 | BA34: 0 | BF34: 0 | BH34: =CONCATENATE("(Z) ",$H$16) -> (Z) | BI34: 0 | BJ34: 0 | BL34: 26
AD35: 0 | AE35: || | AF35: 0 | AN35: 0 | AO35: 0 | AP35: 0 | AQ35: 0 | AS35: || | AU35: Select Cable | AV35: 0 | AW35: 0 | AX35: 0 | AY35: 0 | AZ35: 0 | BA35: 0 | BF35: 0 | BH35: =CONCATENATE("(Z) ",$H$17) -> (Z) | BI35: 0 | BJ35: 0 | BL35: 27
AD36: 0 | AE36: || | AF36: 0 | AN36: 0 | AO36: 0 | AP36: 0 | AQ36: 0 | AS36: || | AU36: Select Cable | AV36: 0 | AW36: 0 | AX36: 0 | AY36: 0 | AZ36: 0 | BA36: 0 | BF36: 0 | BH36: =CONCATENATE("(Z) ",$H$18) -> (Z) | BI36: 0 | BJ36: 0 | BL36: 28
AD37: 0 | AE37: || | AF37: 0 | AN37: 0 | AO37: 0 | AP37: 0 | AQ37: 0 | AS37: || | AU37: Select Cable | AV37: 0 | AW37: 0 | AX37: 0 | AY37: 0 | AZ37: 0 | BA37: 0 | BF37: 0 | BH37: =CONCATENATE("(Z) ",$H$19) -> (Z) | BI37: 0 | BJ37: 0 | BL37: 29
AD38: 0 | AE38: || | AF38: 0 | AN38: 0 | AO38: 0 | AP38: 0 | AQ38: 0 | AS38: || | AU38: Select Cable | AV38: 0 | AW38: 0 | AX38: 0 | AY38: 0 | AZ38: 0 | BA38: 0 | BF38: 0 | BH38: =CONCATENATE("(Z) ",$H$20) -> (Z) | BI38: 0 | BJ38: 0 | BL38: 30
AD39: 0 | AE39: || | AF39: 0 | AN39: 0 | AO39: 0 | AP39: 0 | AQ39: 0 | AS39: || | AU39: Select Cable | AV39: 0 | AW39: 0 | AX39: 0 | AY39: 0 | AZ39: 0 | BA39: 0 | BF39: 0 | BH39: =CONCATENATE("(Z) ",$H$21) -> (Z) | BI39: 0 | BJ39: 0 | BL39: 31
AD40: 0 | AE40: || | AF40: 0 | AN40: 0 | AO40: 0 | AP40: 0 | AQ40: 0 | AS40: || | AU40: Select Cable | AV40: 0 | AW40: 0 | AX40: 0 | AY40: 0 | AZ40: 0 | BA40: 0 | BF40: 0 | BH40: =CONCATENATE("(Z) ",$H$22) -> (Z) | BI40: 0 | BJ40: 0 | BL40: 32
AD41: 0 | AE41: || | AF41: 0 | AN41: 0 | AO41: 0 | AP41: 0 | AQ41: 0 | AS41: || | AU41: Select Cable | AV41: 0 | AW41: 0 | AX41: 0 | AY41: 0 | AZ41: 0 | BA41: 0 | BF41: 0 | BH41: =CONCATENATE("(Z) ",$H$23) -> (Z) | BI41: 0 | BJ41: 0 | BL41: 33
AD42: 0 | AE42: || | AF42: 0 | AN42: 0 | AO42: 0 | AP42: 0 | AQ42: 0 | AS42: || | AU42: Select Cable | AV42: 0 | AW42: 0 | AX42: 0 | AY42: 0 | AZ42: 0 | BA42: 0 | BF42: 0 | BH42: =CONCATENATE("(Z) ",$H$24) -> (Z) | BI42: 0 | BJ42: 0 | BL42: 34
AD43: 0 | AE43: || | AF43: 0 | AN43: 0 | AO43: 0 | AP43: 0 | AQ43: 0 | AS43: || | AU43: Select Cable | AV43: 0 | AW43: 0 | AX43: 0 | AY43: 0 | AZ43: 0 | BA43: 0 | BF43: 0 | BH43: =CONCATENATE("(Z) ",$H$25) -> (Z) | BI43: 0 | BJ43: 0 | BL43: 35
AD44: 0 | AE44: || | AF44: 0 | AN44: 0 | AO44: 0 | AP44: 0 | AQ44: 0 | AS44: || | AU44: Select Cable | AV44: 0 | AW44: 0 | AX44: 0 | AY44: 0 | AZ44: 0 | BA44: 0 | BF44: 0 | BH44: =CONCATENATE("(Z) ",$H$26) -> (Z) | BI44: 0 | BJ44: 0 | BL44: 36
AD45: 0 | AE45: || | AF45: 0 | AN45: 0 | AO45: 0 | AP45: 0 | AQ45: 0 | AS45: || | AU45: Select Cable | AV45: 0 | AW45: 0 | AX45: 0 | AY45: 0 | AZ45: 0 | BA45: 0 | BB45: =IF(AND(AS9<>"||",OR(AV9=0,AW9=0,AY9=0,AZ9=0))," !",0) -> 0 | BF45: 0 | BH45: =CONCATENATE("(Z) ",$H$27) -> (Z) | BI45: 0 | BJ45: 0 | BL45: 37
AD46: 0 | AE46: || | AF46: 0 | AN46: 0 | AO46: 0 | AP46: 0 | AQ46: 0 | AS46: || | AU46: Select Cable | AV46: 0 | AW46: 0 | AX46: 0 | AY46: 0 | AZ46: 0 | BA46: 0 | BB46: 0 | BF46: 0 | BH46: =CONCATENATE("(Z) ",$H$28) -> (Z) | BI46: 0 | BJ46: 0 | BL46: 38
AD47: 0 | AE47: || | AF47: 0 | AN47: 0 | AO47: 0 | AP47: 0 | AQ47: 0 | AS47: || | AU47: Select Cable | AV47: 0 | AW47: 0 | AX47: 0 | AY47: 0 | AZ47: 0 | BA47: 0 | BB47: 0 | BF47: 0 | BH47: =CONCATENATE("(Z) ",$H$29) -> (Z) | BI47: 0 | BJ47: 0 | BL47: 39
AD48: 0 | AE48: || | AF48: 0 | AN48: 0 | AO48: 0 | AP48: 0 | AQ48: 0 | AS48: || | AU48: Select Cable | AV48: 0 | AW48: 0 | AX48: 0 | AY48: 0 | AZ48: 0 | BA48: 0 | BB48: 0 | BF48: 0 | BH48: =CONCATENATE("(Z) ",$H$30) -> (Z) | BI48: 0 | BJ48: 0 | BL48: 40
AD49: 0 | AE49: || | AF49: 0 | AN49: 0 | AO49: 0 | AP49: 0 | AQ49: 0 | AS49: || | AU49: Select Cable | AV49: 0 | AW49: 0 | AX49: 0 | AY49: 0 | AZ49: 0 | BA49: 0 | BB49: 0 | BF49: 0 | BH49: =CONCATENATE("(Z) ",$H$31) -> (Z) | BI49: 0 | BJ49: 0 | BL49: 41
AD50: 0 | AE50: || | AF50: 0 | AN50: 0 | AO50: 0 | AP50: 0 | AQ50: 0 | AS50: || | AU50: Select Cable | AV50: 0 | AW50: 0 | AX50: 0 | AY50: 0 | AZ50: 0 | BA50: 0 | BB50: 0 | BF50: 0 | BH50: =CONCATENATE("(Z) ",$I$13) -> (Z) | BI50: 0 | BJ50: 0 | BL50: 42
AD51: 0 | AE51: || | AF51: 0 | AN51: 0 | AO51: 0 | AP51: 0 | AQ51: 0 | AS51: || | AU51: Select Cable | AV51: 0 | AW51: 0 | AX51: 0 | AY51: 0 | AZ51: 0 | BA51: 0 | BB51: 0 | BF51: 0 | BH51: =CONCATENATE("(Z) ",$I$14) -> (Z) | BI51: 0 | BJ51: 0 | BL51: 43
AD52: 0 | AE52: || | AF52: 0 | AN52: 0 | AO52: 0 | AP52: 0 | AQ52: 0 | AS52: || | AU52: Select Cable | AV52: 0 | AW52: 0 | AX52: 0 | AY52: 0 | AZ52: 0 | BA52: 0 | BB52: 0 | BF52: 0 | BH52: =CONCATENATE("(Z) ",$I$15) -> (Z) | BI52: 0 | BJ52: 0 | BL52: 44
AD53: 0 | AE53: || | AF53: 0 | AN53: 0 | AO53: 0 | AP53: 0 | AQ53: 0 | AS53: || | AU53: Select Cable | AV53: 0 | AW53: 0 | AX53: 0 | AY53: 0 | AZ53: 0 | BA53: 0 | BB53: 0 | BF53: 0 | BH53: =CONCATENATE("(Z) ",$I$16) -> (Z) | BI53: 0 | BJ53: 0 | BL53: 45
AD54: 0 | AE54: || | AF54: 0 | AN54: 0 | AO54: 0 | AP54: 0 | AQ54: 0 | AS54: || | AU54: Select Cable | AV54: 0 | AW54: 0 | AX54: 0 | AY54: 0 | AZ54: 0 | BA54: 0 | BB54: 0 | BF54: 0 | BH54: =CONCATENATE("(Z) ",$I$17) -> (Z) | BI54: 0 | BJ54: 0 | BL54: 46
AD55: 0 | AE55: || | AF55: 0 | AN55: 0 | AO55: 0 | AP55: 0 | AQ55: 0 | AS55: || | AU55: Select Cable | AV55: 0 | AW55: 0 | AX55: 0 | AY55: 0 | AZ55: 0 | BA55: 0 | BB55: 0 | BF55: 0 | BH55: =CONCATENATE("(Z) ",$I$18) -> (Z) | BI55: 0 | BJ55: 0 | BL55: 47
AD56: 0 | AE56: || | AF56: 0 | AN56: 0 | AO56: 0 | AP56: 0 | AQ56: 0 | AS56: || | AU56: Select Cable | AV56: 0 | AW56: 0 | AX56: 0 | AY56: 0 | AZ56: 0 | BA56: 0 | BB56: 0 | BF56: 0 | BH56: =CONCATENATE("(Z) ",$I$19) -> (Z) | BI56: 0 | BJ56: 0 | BL56: 48
AD57: 0 | AE57: || | AF57: 0 | AN57: 0 | AO57: 0 | AP57: 0 | AQ57: 0 | AS57: || | AU57: Select Cable | AV57: 0 | AW57: 0 | AX57: 0 | AY57: 0 | AZ57: 0 | BA57: 0 | BB57: 0 | BF57: 0 | BH57: =CONCATENATE("(Z) ",$I$20) -> (Z) | BI57: 0 | BJ57: 0 | BL57: 49
AD58: 0 | AE58: || | AF58: 0 | AN58: 0 | AO58: 0 | AP58: 0 | AQ58: 0 | AS58: || | AU58: Select Cable | AV58: 0 | AW58: 0 | AX58: 0 | AY58: 0 | AZ58: 0 | BA58: 0 | BB58: 0 | BF58: 0 | BH58: =CONCATENATE("(Z) ",$I$21) -> (Z) | BI58: 0 | BJ58: 0 | BL58: 50
AD59: 0 | AE59: || | AF59: 0 | AN59: 0 | AO59: 0 | AP59: 0 | AQ59: 0 | AS59: || | AU59: Select Cable | AV59: 0 | AW59: 0 | AX59: 0 | AY59: 0 | AZ59: 0 | BA59: 0 | BB59: 0 | BF59: 0 | BH59: =CONCATENATE("(Z) ",$I$22) -> (Z) | BI59: 0 | BJ59: 0 | BL59: 51
AD60: 0 | AE60: || | AF60: 0 | AN60: 0 | AO60: 0 | AP60: 0 | AQ60: 0 | AS60: || | AU60: Select Cable | AV60: 0 | AW60: 0 | AX60: 0 | AY60: 0 | AZ60: 0 | BA60: 0 | BB60: 0 | BF60: 0 | BH60: =CONCATENATE("(Z) ",$I$23) -> (Z) | BI60: 0 | BJ60: 0 | BL60: 52
AD61: 0 | AE61: || | AF61: 0 | AN61: 0 | AO61: 0 | AP61: 0 | AQ61: 0 | AS61: || | AU61: Select Cable | AV61: 0 | AW61: 0 | AX61: 0 | AY61: 0 | AZ61: 0 | BA61: 0 | BB61: 0 | BF61: 0 | BH61: =CONCATENATE("(Z) ",$I$24) -> (Z) | BI61: 0 | BJ61: 0 | BL61: 53
AD62: 0 | AE62: || | AF62: 0 | AN62: 0 | AO62: 0 | AP62: 0 | AQ62: 0 | AS62: || | AU62: Select Cable | AV62: 0 | AW62: 0 | AX62: 0 | AY62: 0 | AZ62: 0 | BA62: 0 | BB62: 0 | BF62: 0 | BH62: =CONCATENATE("(Z) ",$I$25) -> (Z) | BI62: 0 | BJ62: 0 | BL62: 54
AD63: 0 | AE63: || | AF63: 0 | AN63: 0 | AO63: 0 | AP63: 0 | AQ63: 0 | AS63: || | AU63: Select Cable | AV63: 0 | AW63: 0 | AX63: 0 | AY63: 0 | AZ63: 0 | BA63: 0 | BB63: 0 | BF63: 0 | BH63: =CONCATENATE("(Z) ",$I$26) -> (Z) | BI63: 0 | BJ63: 0 | BL63: 55
AD64: 0 | AE64: || | AF64: 0 | AN64: 0 | AO64: 0 | AP64: 0 | AQ64: 0 | AS64: || | AU64: Select Cable | AV64: 0 | AW64: 0 | AX64: 0 | AY64: 0 | AZ64: 0 | BA64: 0 | BB64: 0 | BF64: 0 | BH64: =CONCATENATE("(Z) ",$I$27) -> (Z) | BI64: 0 | BJ64: 0 | BL64: 56
AD65: 0 | AE65: || | AF65: 0 | AN65: 0 | AO65: 0 | AP65: 0 | AQ65: 0 | AS65: || | AU65: Select Cable | AV65: 0 | AW65: 0 | AX65: 0 | AY65: 0 | AZ65: 0 | BA65: 0 | BB65: 0 | BF65: 0 | BH65: =CONCATENATE("(Z) ",$I$28) -> (Z) | BI65: 0 | BJ65: 0 | BL65: 57
AD66: 0 | AE66: || | AF66: 0 | AN66: 0 | AO66: 0 | AP66: 0 | AQ66: 0 | AS66: || | AU66: Select Cable | AV66: 0 | AW66: 0 | AX66: 0 | AY66: 0 | AZ66: 0 | BA66: 0 | BB66: 0 | BF66: 0 | BH66: =CONCATENATE("(Z) ",$I$29) -> (Z) | BI66: 0 | BJ66: 0 | BL66: 58
AD67: 0 | AE67: || | AF67: 0 | AN67: 0 | AO67: 0 | AP67: 0 | AQ67: 0 | AS67: || | AU67: Select Cable | AV67: 0 | AW67: 0 | AX67: 0 | AY67: 0 | AZ67: 0 | BA67: 0 | BB67: 0 | BF67: 0 | BH67: =CONCATENATE("(Z) ",$I$30) -> (Z) | BI67: 0 | BJ67: 0 | BL67: 59
AD68: 0 | AE68: || | AF68: 0 | AN68: 0 | AO68: 0 | AP68: 0 | AQ68: 0 | AS68: || | AU68: Select Cable | AV68: 0 | AW68: 0 | AX68: 0 | AY68: 0 | AZ68: 0 | BA68: 0 | BB68: 0 | BF68: 0 | BH68: =CONCATENATE("(Z) ",$I$31) -> (Z) | BI68: 0 | BJ68: 0 | BL68: 60
AD69: 0 | AE69: || | AF69: 0 | AN69: 0 | AO69: 0 | AP69: 0 | AQ69: 0 | AS69: || | AU69: Select Cable | AV69: 0 | AW69: 0 | AX69: 0 | AY69: 0 | AZ69: 0 | BA69: 0 | BB69: 0 | BF69: 0 | BH69: =CONCATENATE("(Z) ",$J$14) -> (Z) | BI69: 0 | BJ69: 0 | BL69: 61
AD70: 0 | AE70: || | AF70: 0 | AN70: 0 | AO70: 0 | AP70: 0 | AQ70: 0 | AS70: || | AU70: Select Cable | AV70: 0 | AW70: 0 | AX70: 0 | AY70: 0 | AZ70: 0 | BA70: 0 | BB70: 0 | BF70: 0 | BH70: =CONCATENATE("(Z) ",$J$15) -> (Z) | BI70: 0 | BJ70: 0 | BL70: 62
AD71: 0 | AE71: || | AF71: 0 | AN71: 0 | AO71: 0 | AP71: 0 | AQ71: 0 | AS71: || | AU71: Select Cable | AV71: 0 | AW71: 0 | AX71: 0 | AY71: 0 | AZ71: 0 | BA71: 0 | BB71: 0 | BF71: 0 | BH71: =CONCATENATE("(Z) ",$J$16) -> (Z) | BI71: 0 | BJ71: 0 | BL71: 63
AD72: 0 | AE72: || | AF72: 0 | AN72: 0 | AO72: 0 | AP72: 0 | AQ72: 0 | AS72: || | AU72: Select Cable | AV72: 0 | AW72: 0 | AX72: 0 | AY72: 0 | AZ72: 0 | BA72: 0 | BB72: 0 | BF72: 0 | BH72: =CONCATENATE("(Z) ",$J$17) -> (Z) | BI72: 0 | BJ72: 0 | BL72: 64
AD73: 0 | AE73: || | AF73: 0 | AN73: 0 | AO73: 0 | AP73: 0 | AQ73: 0 | AS73: =AE73 -> || | AU73: Select Cable | AV73: =VLOOKUP($AU73,$BN$8:$BV$37,2,0)*($AT73/1000)*(100/$AY$6^2) -> 0 | AW73: =VLOOKUP($AU73,$BN$8:$BV$37,3,0)*($AT73/1000)*(100/$AY$6^2) -> 0 | AX73: =VLOOKUP($AU73,$BN$8:$BV$37,4,0)*(120*PI()*0.000001)*($AY$6^2/100)*($AT73/1000) -> 0 | AY73: =VLOOKUP($AU73,$BN$8:$BV$37,5,0)*($AT73/1000)*(100/$AY$6^2) -> 0 | AZ73: =VLOOKUP($AU73,$BN$8:$BV$37,6,0)*($AT73/1000)*(100/$AY$6^2) -> 0 | BA73: =VLOOKUP($AU73,$BN$8:$BV$37,7,0)*(120*PI()*0.000001)*($AY$6^2/100)*($AT73/1000) -> 0 | BB73: 0 | BF73: 0 | BH73: =CONCATENATE("(Z) ",$J$18) -> (Z) | BI73: 0 | BJ73: 0 | BL73: 65
AD74: =IF(ISNA(VLOOKUP($BL74,$BF$9:$BH$239,2,0)),0,VLOOKUP($BL74,$BF$9:$BH$239,2,0)) -> 0 | AE74: =IF(ISNA(VLOOKUP($BL74,$BF$9:$BH$239,3,0)),"||",VLOOKUP($BL74,$BF$9:$BH$239,3,0)) -> || | AF74: =IF(AND(AE74<>"||",OR(AG74=0,AH74=0,AI74=0,AK74=0,AL74=0)),"!",0) -> 0 | AN74: =$AH74*$AG74^2 -> 0 | AO74: =$AI74*$AG74^2 -> 0 | AP74: =$AK74*$AG74^2 -> 0 | AQ74: =$AL74*$AG74^2 -> 0 | AS74: || | AU74: Select Cable | AV74: 0 | AW74: 0 | AX74: 0 | AY74: 0 | AZ74: 0 | BA74: 0 | BB74: 0 | BF74: 0 | BH74: =CONCATENATE("(Z) ",$J$19) -> (Z) | BI74: 0 | BJ74: 0 | BL74: 66
AD75: 0 | AE75: || | AF75: 0 | AN75: 0 | AO75: 0 | AP75: 0 | AQ75: 0 | AS75: || | AU75: Select Cable | AV75: 0 | AW75: 0 | AX75: 0 | AY75: 0 | AZ75: 0 | BA75: 0 | BB75: 0 | BF75: 0 | BG75: =IF(BH75<>"(Z) ","Input -->","") ->  | BH75: =CONCATENATE("(Z) ",$J$20) -> (Z) | BI75: 0 | BJ75: =IF(BI75=1,BJ74+1,BJ74) -> 0 | BL75: 67
AD76: 0 | AE76: || | AF76: 0 | AN76: 0 | AO76: 0 | AP76: 0 | AQ76: 0 | AS76: || | AU76: Select Cable | AV76: 0 | AW76: 0 | AX76: 0 | AY76: 0 | AZ76: 0 | BA76: 0 | BB76: 0 | BF76: 0 | BH76: =CONCATENATE("(Z) ",$J$21) -> (Z) | BI76: 0 | BJ76: 0 | BL76: 68
AD77: 0 | AE77: || | AF77: 0 | AN77: 0 | AO77: 0 | AP77: 0 | AQ77: 0 | AS77: || | AU77: Select Cable | AV77: 0 | AW77: 0 | AX77: 0 | AY77: 0 | AZ77: 0 | BA77: 0 | BB77: 0 | BF77: =IF(BJ77>BJ76,BJ77,0) -> 0 | BH77: =CONCATENATE("(Z) ",$J$22) -> (Z) | BI77: 0 | BJ77: 0 | BL77: 69
AD78: 0 | AE78: || | AF78: 0 | AN78: 0 | AO78: 0 | AP78: 0 | AQ78: 0 | AS78: || | AU78: Select Cable | AV78: 0 | AW78: 0 | AX78: 0 | AY78: 0 | AZ78: 0 | BA78: 0 | BB78: 0 | BF78: 0 | BH78: =CONCATENATE("(Z) ",$J$23) -> (Z) | BI78: =IF(BH78="(Z) ", 0,1) -> 0 | BJ78: 0 | BL78: 70
AD79: 0 | AE79: || | AF79: 0 | AN79: 0 | AO79: 0 | AP79: 0 | AQ79: 0 | AS79: || | AU79: Select Cable | AV79: 0 | AW79: 0 | AX79: 0 | AY79: 0 | AZ79: 0 | BA79: 0 | BB79: 0 | BF79: 0 | BH79: =CONCATENATE("(Z) ",$J$24) -> (Z) | BI79: 0 | BJ79: 0 | BL79: 71
AD80: 0 | AE80: || | AF80: 0 | AN80: 0 | AO80: 0 | AP80: 0 | AQ80: 0 | AS80: || | AU80: Select Cable | AV80: 0 | AW80: 0 | AX80: 0 | AY80: 0 | AZ80: 0 | BA80: 0 | BB80: 0 | BF80: 0 | BH80: =CONCATENATE("(Z) ",$J$25) -> (Z) | BI80: 0 | BJ80: 0 | BL80: 72
X81: If you would like to Equivalence Multiple Feeders into a Single Feeder… Go Here --> | AD81: 0 | AE81: || | AF81: 0 | AN81: 0 | AO81: 0 | AP81: 0 | AQ81: 0 | AS81: || | AU81: Select Cable | AV81: 0 | AW81: 0 | AX81: 0 | AY81: 0 | AZ81: 0 | BA81: 0 | BB81: 0 | BF81: 0 | BH81: =CONCATENATE("(Z) ",$J$26) -> (Z) | BI81: 0 | BJ81: 0 | BL81: 73
AD82: 0 | AE82: || | AF82: 0 | AN82: 0 | AO82: 0 | AP82: 0 | AQ82: 0 | AS82: || | AU82: Select Cable | AV82: 0 | AW82: 0 | AX82: 0 | AY82: 0 | AZ82: 0 | BA82: 0 | BB82: 0 | BF82: 0 | BH82: =CONCATENATE("(Z) ",$J$27) -> (Z) | BI82: 0 | BJ82: 0 | BL82: 74
AD83: 0 | AE83: || | AF83: 0 | AN83: 0 | AO83: 0 | AP83: 0 | AQ83: 0 | AS83: || | AU83: Select Cable | AV83: 0 | AW83: 0 | AX83: 0 | AY83: 0 | AZ83: 0 | BA83: 0 | BB83: 0 | BF83: 0 | BH83: =CONCATENATE("(Z) ",$J$28) -> (Z) | BI83: 0 | BJ83: 0 | BL83: 75
AD84: 0 | AE84: || | AF84: 0 | AN84: 0 | AO84: 0 | AP84: 0 | AQ84: 0 | AS84: || | AU84: Select Cable | AV84: 0 | AW84: 0 | AX84: 0 | AY84: 0 | AZ84: 0 | BA84: 0 | BB84: 0 | BF84: 0 | BH84: =CONCATENATE("(Z) ",$J$29) -> (Z) | BI84: 0 | BJ84: 0 | BL84: 76
AD85: 0 | AE85: || | AF85: 0 | AN85: 0 | AO85: 0 | AP85: 0 | AQ85: 0 | AS85: || | AU85: Select Cable | AV85: 0 | AW85: 0 | AX85: 0 | AY85: 0 | AZ85: 0 | BA85: 0 | BB85: 0 | BF85: 0 | BH85: =CONCATENATE("(Z) ",$J$30) -> (Z) | BI85: 0 | BJ85: 0 | BL85: 77
AD86: 0 | AE86: || | AF86: 0 | AN86: 0 | AO86: 0 | AP86: 0 | AQ86: 0 | AS86: || | AU86: Select Cable | AV86: 0 | AW86: 0 | AX86: 0 | AY86: 0 | AZ86: 0 | BA86: 0 | BB86: 0 | BF86: 0 | BH86: =CONCATENATE("(Z) ",$J$31) -> (Z) | BI86: 0 | BJ86: 0 | BL86: 78
AD87: 0 | AE87: || | AF87: 0 | AN87: 0 | AO87: 0 | AP87: 0 | AQ87: 0 | AS87: || | AU87: Select Cable | AV87: 0 | AW87: 0 | AX87: 0 | AY87: 0 | AZ87: 0 | BA87: 0 | BB87: 0 | BF87: 0 | BH87: =CONCATENATE("(Z) ",$K$15) -> (Z) | BI87: 0 | BJ87: 0 | BL87: 79
AD88: 0 | AE88: || | AF88: 0 | AN88: 0 | AO88: 0 | AP88: 0 | AQ88: 0 | AS88: || | AU88: Select Cable | AV88: 0 | AW88: 0 | AX88: 0 | AY88: 0 | AZ88: 0 | BA88: 0 | BB88: 0 | BF88: 0 | BH88: =CONCATENATE("(Z) ",$K$16) -> (Z) | BI88: 0 | BJ88: 0 | BL88: 80
AD89: 0 | AE89: || | AF89: 0 | AN89: 0 | AO89: 0 | AP89: 0 | AQ89: 0 | AS89: || | AU89: Select Cable | AV89: 0 | AW89: 0 | AX89: 0 | AY89: 0 | AZ89: 0 | BA89: 0 | BB89: 0 | BF89: 0 | BH89: =CONCATENATE("(Z) ",$K$17) -> (Z) | BI89: 0 | BJ89: 0 | BL89: 81
AD90: 0 | AE90: || | AF90: 0 | AN90: 0 | AO90: 0 | AP90: 0 | AQ90: 0 | AS90: || | AU90: Select Cable | AV90: 0 | AW90: 0 | AX90: 0 | AY90: 0 | AZ90: 0 | BA90: 0 | BB90: 0 | BF90: 0 | BH90: =CONCATENATE("(Z) ",$K$18) -> (Z) | BI90: 0 | BJ90: 0 | BL90: 82
AD91: 0 | AE91: || | AF91: 0 | AN91: 0 | AO91: 0 | AP91: 0 | AQ91: 0 | AS91: || | AU91: Select Cable | AV91: 0 | AW91: 0 | AX91: 0 | AY91: 0 | AZ91: 0 | BA91: 0 | BB91: 0 | BF91: 0 | BH91: =CONCATENATE("(Z) ",$K$19) -> (Z) | BI91: 0 | BJ91: 0 | BL91: 83
AD92: 0 | AE92: || | AF92: 0 | AN92: 0 | AO92: 0 | AP92: 0 | AQ92: 0 | AS92: || | AU92: Select Cable | AV92: 0 | AW92: 0 | AX92: 0 | AY92: 0 | AZ92: 0 | BA92: 0 | BB92: 0 | BF92: 0 | BH92: =CONCATENATE("(Z) ",$K$20) -> (Z) | BI92: 0 | BJ92: 0 | BL92: 84
AD93: 0 | AE93: || | AF93: 0 | AN93: 0 | AO93: 0 | AP93: 0 | AQ93: 0 | AS93: || | AU93: Select Cable | AV93: 0 | AW93: 0 | AX93: 0 | AY93: 0 | AZ93: 0 | BA93: 0 | BB93: 0 | BF93: 0 | BH93: =CONCATENATE("(Z) ",$K$21) -> (Z) | BI93: 0 | BJ93: 0 | BL93: 85
AD94: 0 | AE94: || | AF94: 0 | AN94: 0 | AO94: 0 | AP94: 0 | AQ94: 0 | AS94: || | AU94: Select Cable | AV94: 0 | AW94: 0 | AX94: 0 | AY94: 0 | AZ94: 0 | BA94: 0 | BB94: 0 | BF94: 0 | BH94: =CONCATENATE("(Z) ",$K$22) -> (Z) | BI94: 0 | BJ94: 0 | BL94: 86
AD95: 0 | AE95: || | AF95: 0 | AN95: 0 | AO95: 0 | AP95: 0 | AQ95: 0 | AS95: || | AU95: Select Cable | AV95: 0 | AW95: 0 | AX95: 0 | AY95: 0 | AZ95: 0 | BA95: 0 | BB95: 0 | BF95: 0 | BH95: =CONCATENATE("(Z) ",$K$23) -> (Z) | BI95: 0 | BJ95: 0 | BL95: 87
AD96: 0 | AE96: || | AF96: 0 | AN96: 0 | AO96: 0 | AP96: 0 | AQ96: 0 | AS96: || | AU96: Select Cable | AV96: 0 | AW96: 0 | AX96: 0 | AY96: 0 | AZ96: 0 | BA96: 0 | BB96: 0 | BF96: 0 | BH96: =CONCATENATE("(Z) ",$K$24) -> (Z) | BI96: 0 | BJ96: 0 | BL96: 88
AD97: 0 | AE97: || | AF97: 0 | AN97: 0 | AO97: 0 | AP97: 0 | AQ97: 0 | AS97: || | AU97: Select Cable | AV97: 0 | AW97: 0 | AX97: 0 | AY97: 0 | AZ97: 0 | BA97: 0 | BB97: 0 | BF97: 0 | BH97: =CONCATENATE("(Z) ",$K$25) -> (Z) | BI97: 0 | BJ97: 0 | BL97: 89
AD98: 0 | AE98: || | AF98: 0 | AN98: 0 | AO98: 0 | AP98: 0 | AQ98: 0 | AS98: || | AU98: Select Cable | AV98: 0 | AW98: 0 | AX98: 0 | AY98: 0 | AZ98: 0 | BA98: 0 | BB98: 0 | BF98: 0 | BH98: =CONCATENATE("(Z) ",$K$26) -> (Z) | BI98: 0 | BJ98: 0 | BL98: 90
AD99: 0 | AE99: || | AF99: 0 | AN99: 0 | AO99: 0 | AP99: 0 | AQ99: 0 | AS99: || | AU99: Select Cable | AV99: 0 | AW99: 0 | AX99: 0 | AY99: 0 | AZ99: 0 | BA99: 0 | BB99: 0 | BF99: 0 | BH99: =CONCATENATE("(Z) ",$K$27) -> (Z) | BI99: 0 | BJ99: 0 | BL99: 91
AD100: 0 | AE100: || | AF100: 0 | AN100: 0 | AO100: 0 | AP100: 0 | AQ100: 0 | AS100: || | AU100: Select Cable | AV100: 0 | AW100: 0 | AX100: 0 | AY100: 0 | AZ100: 0 | BA100: 0 | BB100: 0 | BF100: 0 | BH100: =CONCATENATE("(Z) ",$K$28) -> (Z) | BI100: 0 | BJ100: 0 | BL100: 92
AD101: 0 | AE101: || | AF101: 0 | AN101: 0 | AO101: 0 | AP101: 0 | AQ101: 0 | AS101: || | AU101: Select Cable | AV101: 0 | AW101: 0 | AX101: 0 | AY101: 0 | AZ101: 0 | BA101: 0 | BB101: 0 | BF101: 0 | BH101: =CONCATENATE("(Z) ",$K$29) -> (Z) | BI101: 0 | BJ101: 0 | BL101: 93
AD102: 0 | AE102: || | AF102: 0 | AN102: 0 | AO102: 0 | AP102: 0 | AQ102: 0 | AS102: || | AU102: Select Cable | AV102: 0 | AW102: 0 | AX102: 0 | AY102: 0 | AZ102: 0 | BA102: 0 | BB102: 0 | BF102: 0 | BH102: =CONCATENATE("(Z) ",$K$30) -> (Z) | BI102: 0 | BJ102: 0 | BL102: 94
AD103: 0 | AE103: || | AF103: 0 | AN103: 0 | AO103: 0 | AP103: 0 | AQ103: 0 | AS103: || | AU103: Select Cable | AV103: 0 | AW103: 0 | AX103: 0 | AY103: 0 | AZ103: 0 | BA103: 0 | BB103: 0 | BF103: 0 | BH103: =CONCATENATE("(Z) ",$K$31) -> (Z) | BI103: 0 | BJ103: 0 | BL103: 95
AD104: 0 | AE104: || | AF104: 0 | AN104: 0 | AO104: 0 | AP104: 0 | AQ104: 0 | AS104: || | AU104: Select Cable | AV104: 0 | AW104: 0 | AX104: 0 | AY104: 0 | AZ104: 0 | BA104: 0 | BB104: 0 | BF104: 0 | BH104: =CONCATENATE("(Z) ",$L$16) -> (Z) | BI104: 0 | BJ104: 0 | BL104: 96
AD105: 0 | AE105: || | AF105: 0 | AN105: 0 | AO105: 0 | AP105: 0 | AQ105: 0 | AS105: || | AU105: Select Cable | AV105: 0 | AW105: 0 | AX105: 0 | AY105: 0 | AZ105: 0 | BA105: 0 | BB105: 0 | BF105: 0 | BH105: =CONCATENATE("(Z) ",$L$17) -> (Z) | BI105: 0 | BJ105: 0 | BL105: 97
AD106: 0 | AE106: || | AF106: 0 | AN106: 0 | AO106: 0 | AP106: 0 | AQ106: 0 | AS106: || | AU106: Select Cable | AV106: 0 | AW106: 0 | AX106: 0 | AY106: 0 | AZ106: 0 | BA106: 0 | BB106: 0 | BF106: 0 | BH106: =CONCATENATE("(Z) ",$L$18) -> (Z) | BI106: 0 | BJ106: 0 | BL106: 98
AD107: 0 | AE107: || | AF107: 0 | AN107: 0 | AO107: 0 | AP107: 0 | AQ107: 0 | AS107: || | AU107: Select Cable | AV107: 0 | AW107: 0 | AX107: 0 | AY107: 0 | AZ107: 0 | BA107: 0 | BB107: 0 | BF107: 0 | BH107: =CONCATENATE("(Z) ",$L$19) -> (Z) | BI107: 0 | BJ107: 0 | BL107: 99
AD108: 0 | AE108: || | AF108: 0 | AN108: 0 | AO108: 0 | AP108: 0 | AQ108: 0 | AS108: || | AU108: Select Cable | AV108: 0 | AW108: 0 | AX108: 0 | AY108: 0 | AZ108: 0 | BA108: 0 | BB108: 0 | BF108: 0 | BH108: =CONCATENATE("(Z) ",$L$20) -> (Z) | BI108: 0 | BJ108: 0 | BL108: 100
AD109: 0 | AE109: || | AF109: 0 | AN109: 0 | AO109: 0 | AP109: 0 | AQ109: 0 | AS109: || | AU109: Select Cable | AV109: 0 | AW109: 0 | AX109: 0 | AY109: 0 | AZ109: 0 | BA109: 0 | BB109: =IF(AND(AS73<>"||",OR(AV73=0,AW73=0,AY73=0,AZ73=0))," !",0) -> 0 | BF109: 0 | BH109: =CONCATENATE("(Z) ",$L$21) -> (Z) | BI109: 0 | BJ109: 0 | BL109: 101
AD110: 0 | AE110: || | AF110: 0 | AN110: 0 | AO110: 0 | AP110: 0 | AQ110: 0 | AS110: || | AU110: Select Cable | AV110: 0 | AW110: 0 | AX110: 0 | AY110: 0 | AZ110: 0 | BA110: 0 | BB110: 0 | BF110: 0 | BH110: =CONCATENATE("(Z) ",$L$22) -> (Z) | BI110: 0 | BJ110: 0 | BL110: 102
AD111: 0 | AE111: || | AF111: 0 | AN111: 0 | AO111: 0 | AP111: 0 | AQ111: 0 | AS111: || | AU111: Select Cable | AV111: 0 | AW111: 0 | AX111: 0 | AY111: 0 | AZ111: 0 | BA111: 0 | BB111: 0 | BF111: 0 | BH111: =CONCATENATE("(Z) ",$L$23) -> (Z) | BI111: 0 | BJ111: 0 | BL111: 103
AD112: 0 | AE112: || | AF112: 0 | AN112: 0 | AO112: 0 | AP112: 0 | AQ112: 0 | AS112: || | AU112: Select Cable | AV112: 0 | AW112: 0 | AX112: 0 | AY112: 0 | AZ112: 0 | BA112: 0 | BB112: 0 | BF112: 0 | BH112: =CONCATENATE("(Z) ",$L$24) -> (Z) | BI112: 0 | BJ112: 0 | BL112: 104
AD113: 0 | AE113: || | AF113: 0 | AN113: 0 | AO113: 0 | AP113: 0 | AQ113: 0 | AS113: || | AU113: Select Cable | AV113: 0 | AW113: 0 | AX113: 0 | AY113: 0 | AZ113: 0 | BA113: 0 | BB113: 0 | BF113: 0 | BH113: =CONCATENATE("(Z) ",$L$25) -> (Z) | BI113: 0 | BJ113: 0 | BL113: 105
AD114: 0 | AE114: || | AF114: 0 | AN114: 0 | AO114: 0 | AP114: 0 | AQ114: 0 | AS114: || | AU114: Select Cable | AV114: 0 | AW114: 0 | AX114: 0 | AY114: 0 | AZ114: 0 | BA114: 0 | BB114: 0 | BF114: 0 | BH114: =CONCATENATE("(Z) ",$L$26) -> (Z) | BI114: 0 | BJ114: 0 | BL114: 106
AD115: 0 | AE115: || | AF115: 0 | AN115: 0 | AO115: 0 | AP115: 0 | AQ115: 0 | AS115: || | AU115: Select Cable | AV115: 0 | AW115: 0 | AX115: 0 | AY115: 0 | AZ115: 0 | BA115: 0 | BB115: 0 | BF115: 0 | BH115: =CONCATENATE("(Z) ",$L$27) -> (Z) | BI115: 0 | BJ115: 0 | BL115: 107
AD116: 0 | AE116: || | AF116: 0 | AN116: 0 | AO116: 0 | AP116: 0 | AQ116: 0 | AS116: || | AU116: Select Cable | AV116: 0 | AW116: 0 | AX116: 0 | AY116: 0 | AZ116: 0 | BA116: 0 | BB116: 0 | BF116: 0 | BH116: =CONCATENATE("(Z) ",$L$28) -> (Z) | BI116: 0 | BJ116: 0 | BL116: 108
AD117: 0 | AE117: || | AF117: 0 | AN117: 0 | AO117: 0 | AP117: 0 | AQ117: 0 | AS117: || | AU117: Select Cable | AV117: 0 | AW117: 0 | AX117: 0 | AY117: 0 | AZ117: 0 | BA117: 0 | BB117: 0 | BF117: 0 | BH117: =CONCATENATE("(Z) ",$L$29) -> (Z) | BI117: 0 | BJ117: 0 | BL117: 109
AD118: 0 | AE118: || | AF118: 0 | AN118: 0 | AO118: 0 | AP118: 0 | AQ118: 0 | AS118: || | AU118: Select Cable | AV118: 0 | AW118: 0 | AX118: 0 | AY118: 0 | AZ118: 0 | BA118: 0 | BB118: 0 | BF118: 0 | BH118: =CONCATENATE("(Z) ",$L$30) -> (Z) | BI118: 0 | BJ118: 0 | BL118: 110
AD119: 0 | AE119: || | AF119: 0 | AN119: 0 | AO119: 0 | AP119: 0 | AQ119: 0 | AS119: || | AU119: Select Cable | AV119: 0 | AW119: 0 | AX119: 0 | AY119: 0 | AZ119: 0 | BA119: 0 | BB119: 0 | BF119: 0 | BH119: =CONCATENATE("(Z) ",$L$31) -> (Z) | BI119: 0 | BJ119: 0 | BL119: 111
AD120: 0 | AE120: || | AF120: 0 | AN120: 0 | AO120: 0 | AP120: 0 | AQ120: 0 | AS120: || | AU120: Select Cable | AV120: 0 | AW120: 0 | AX120: 0 | AY120: 0 | AZ120: 0 | BA120: 0 | BB120: 0 | BF120: 0 | BH120: =CONCATENATE("(Z) ",$M$17) -> (Z) | BI120: 0 | BJ120: 0 | BL120: 112
AD121: 0 | AE121: || | AF121: 0 | AN121: 0 | AO121: 0 | AP121: 0 | AQ121: 0 | AS121: || | AU121: Select Cable | AV121: 0 | AW121: 0 | AX121: 0 | AY121: 0 | AZ121: 0 | BA121: 0 | BB121: 0 | BF121: 0 | BH121: =CONCATENATE("(Z) ",$M$18) -> (Z) | BI121: 0 | BJ121: 0 | BL121: 113
AD122: 0 | AE122: || | AF122: 0 | AN122: 0 | AO122: 0 | AP122: 0 | AQ122: 0 | AS122: || | AU122: Select Cable | AV122: 0 | AW122: 0 | AX122: 0 | AY122: 0 | AZ122: 0 | BA122: 0 | BB122: 0 | BF122: 0 | BH122: =CONCATENATE("(Z) ",$M$19) -> (Z) | BI122: 0 | BJ122: 0 | BL122: 114
AD123: 0 | AE123: || | AF123: 0 | AN123: 0 | AO123: 0 | AP123: 0 | AQ123: 0 | AS123: || | AU123: Select Cable | AV123: 0 | AW123: 0 | AX123: 0 | AY123: 0 | AZ123: 0 | BA123: 0 | BB123: 0 | BF123: 0 | BH123: =CONCATENATE("(Z) ",$M$20) -> (Z) | BI123: 0 | BJ123: 0 | BL123: 115
AD124: 0 | AE124: || | AF124: 0 | AN124: 0 | AO124: 0 | AP124: 0 | AQ124: 0 | AS124: || | AU124: Select Cable | AV124: 0 | AW124: 0 | AX124: 0 | AY124: 0 | AZ124: 0 | BA124: 0 | BB124: 0 | BF124: 0 | BH124: =CONCATENATE("(Z) ",$M$21) -> (Z) | BI124: 0 | BJ124: 0 | BL124: 116
AD125: 0 | AE125: || | AF125: 0 | AN125: 0 | AO125: 0 | AP125: 0 | AQ125: 0 | AS125: || | AU125: Select Cable | AV125: 0 | AW125: 0 | AX125: 0 | AY125: 0 | AZ125: 0 | BA125: 0 | BB125: 0 | BF125: 0 | BH125: =CONCATENATE("(Z) ",$M$22) -> (Z) | BI125: 0 | BJ125: 0 | BL125: 117
AD126: 0 | AE126: || | AF126: 0 | AN126: 0 | AO126: 0 | AP126: 0 | AQ126: 0 | AS126: || | AU126: Select Cable | AV126: 0 | AW126: 0 | AX126: 0 | AY126: 0 | AZ126: 0 | BA126: 0 | BB126: 0 | BF126: 0 | BH126: =CONCATENATE("(Z) ",$M$23) -> (Z) | BI126: 0 | BJ126: 0 | BL126: 118
AD127: 0 | AE127: || | AF127: 0 | AN127: 0 | AO127: 0 | AP127: 0 | AQ127: 0 | AS127: || | AU127: Select Cable | AV127: 0 | AW127: 0 | AX127: 0 | AY127: 0 | AZ127: 0 | BA127: 0 | BB127: 0 | BF127: 0 | BH127: =CONCATENATE("(Z) ",$M$24) -> (Z) | BI127: 0 | BJ127: 0 | BL127: 119
AD128: 0 | AE128: || | AF128: 0 | AN128: 0 | AO128: 0 | AP128: 0 | AQ128: 0 | AS128: || | AU128: Select Cable | AV128: 0 | AW128: 0 | AX128: 0 | AY128: 0 | AZ128: 0 | BA128: 0 | BB128: 0 | BF128: 0 | BH128: =CONCATENATE("(Z) ",$M$25) -> (Z) | BI128: 0 | BJ128: 0 | BL128: 120
AD129: 0 | AE129: || | AF129: 0 | AN129: 0 | AO129: 0 | AP129: 0 | AQ129: 0 | AS129: || | AU129: Select Cable | AV129: 0 | AW129: 0 | AX129: 0 | AY129: 0 | AZ129: 0 | BA129: 0 | BB129: 0 | BF129: 0 | BH129: =CONCATENATE("(Z) ",$M$26) -> (Z) | BI129: 0 | BJ129: 0 | BL129: 121
AD130: 0 | AE130: || | AF130: 0 | AN130: 0 | AO130: 0 | AP130: 0 | AQ130: 0 | AS130: || | AU130: Select Cable | AV130: 0 | AW130: 0 | AX130: 0 | AY130: 0 | AZ130: 0 | BA130: 0 | BB130: 0 | BF130: 0 | BH130: =CONCATENATE("(Z) ",$M$27) -> (Z) | BI130: 0 | BJ130: 0 | BL130: 122
AD131: 0 | AE131: || | AF131: 0 | AN131: 0 | AO131: 0 | AP131: 0 | AQ131: 0 | AS131: || | AU131: Select Cable | AV131: 0 | AW131: 0 | AX131: 0 | AY131: 0 | AZ131: 0 | BA131: 0 | BB131: 0 | BF131: 0 | BH131: =CONCATENATE("(Z) ",$M$28) -> (Z) | BI131: 0 | BJ131: 0 | BL131: 123
AD132: 0 | AE132: || | AF132: 0 | AN132: 0 | AO132: 0 | AP132: 0 | AQ132: 0 | AS132: || | AU132: Select Cable | AV132: 0 | AW132: 0 | AX132: 0 | AY132: 0 | AZ132: 0 | BA132: 0 | BB132: 0 | BF132: 0 | BH132: =CONCATENATE("(Z) ",$M$29) -> (Z) | BI132: 0 | BJ132: 0 | BL132: 124
AD133: 0 | AE133: || | AF133: 0 | AN133: 0 | AO133: 0 | AP133: 0 | AQ133: 0 | AS133: || | AU133: Select Cable | AV133: 0 | AW133: 0 | AX133: 0 | AY133: 0 | AZ133: 0 | BA133: 0 | BB133: 0 | BF133: 0 | BH133: =CONCATENATE("(Z) ",$M$30) -> (Z) | BI133: 0 | BJ133: 0 | BL133: 125
AD134: 0 | AE134: || | AF134: 0 | AN134: 0 | AO134: 0 | AP134: 0 | AQ134: 0 | AS134: || | AU134: Select Cable | AV134: 0 | AW134: 0 | AX134: 0 | AY134: 0 | AZ134: 0 | BA134: 0 | BB134: 0 | BF134: 0 | BH134: =CONCATENATE("(Z) ",$M$31) -> (Z) | BI134: 0 | BJ134: 0 | BL134: 126
AD135: 0 | AE135: || | AF135: 0 | AN135: 0 | AO135: 0 | AP135: 0 | AQ135: 0 | AS135: || | AU135: Select Cable | AV135: 0 | AW135: 0 | AX135: 0 | AY135: 0 | AZ135: 0 | BA135: 0 | BB135: 0 | BF135: 0 | BH135: =CONCATENATE("(Z) ",$N$18) -> (Z) | BI135: 0 | BJ135: 0 | BL135: 127
AD136: 0 | AE136: || | AF136: 0 | AN136: 0 | AO136: 0 | AP136: 0 | AQ136: 0 | AS136: || | AU136: Select Cable | AV136: 0 | AW136: 0 | AX136: 0 | AY136: 0 | AZ136: 0 | BA136: 0 | BB136: 0 | BF136: 0 | BH136: =CONCATENATE("(Z) ",$N$19) -> (Z) | BI136: 0 | BJ136: 0 | BL136: 128
AD137: 0 | AE137: || | AF137: 0 | AN137: 0 | AO137: 0 | AP137: 0 | AQ137: 0 | AS137: =AE137 -> || | AU137: Select Cable | AV137: =VLOOKUP($AU137,$BN$8:$BV$37,2,0)*($AT137/1000)*(100/$AY$6^2) -> 0 | AW137: =VLOOKUP($AU137,$BN$8:$BV$37,3,0)*($AT137/1000)*(100/$AY$6^2) -> 0 | AX137: =VLOOKUP($AU137,$BN$8:$BV$37,4,0)*(120*PI()*0.000001)*($AY$6^2/100)*($AT137/1000) -> 0 | AY137: =VLOOKUP($AU137,$BN$8:$BV$37,5,0)*($AT137/1000)*(100/$AY$6^2) -> 0 | AZ137: =VLOOKUP($AU137,$BN$8:$BV$37,6,0)*($AT137/1000)*(100/$AY$6^2) -> 0 | BA137: =VLOOKUP($AU137,$BN$8:$BV$37,7,0)*(120*PI()*0.000001)*($AY$6^2/100)*($AT137/1000) -> 0 | BB137: 0 | BF137: 0 | BH137: =CONCATENATE("(Z) ",$N$20) -> (Z) | BI137: 0 | BJ137: 0 | BL137: 129
AD138: =IF(ISNA(VLOOKUP($BL138,$BF$9:$BH$239,2,0)),0,VLOOKUP($BL138,$BF$9:$BH$239,2,0)) -> 0 | AE138: =IF(ISNA(VLOOKUP($BL138,$BF$9:$BH$239,3,0)),"||",VLOOKUP($BL138,$BF$9:$BH$239,3,0)) -> || | AF138: =IF(AND(AE138<>"||",OR(AG138=0,AH138=0,AI138=0,AK138=0,AL138=0)),"!",0) -> 0 | AN138: =$AH138*$AG138^2 -> 0 | AO138: =$AI138*$AG138^2 -> 0 | AP138: =$AK138*$AG138^2 -> 0 | AQ138: =$AL138*$AG138^2 -> 0 | AS138: || | AU138: Select Cable | AV138: 0 | AW138: 0 | AX138: 0 | AY138: 0 | AZ138: 0 | BA138: 0 | BB138: 0 | BF138: 0 | BH138: =CONCATENATE("(Z) ",$N$21) -> (Z) | BI138: 0 | BJ138: 0 | BL138: 130
AD139: 0 | AE139: || | AF139: 0 | AN139: 0 | AO139: 0 | AP139: 0 | AQ139: 0 | AS139: || | AU139: Select Cable | AV139: 0 | AW139: 0 | AX139: 0 | AY139: 0 | AZ139: 0 | BA139: 0 | BB139: 0 | BF139: 0 | BG139: =IF(BH139<>"(Z) ","Input -->","") ->  | BH139: =CONCATENATE("(Z) ",$N$22) -> (Z) | BI139: 0 | BJ139: =IF(BI139=1,BJ138+1,BJ138) -> 0 | BL139: 131
AD140: 0 | AE140: || | AF140: 0 | AN140: 0 | AO140: 0 | AP140: 0 | AQ140: 0 | AS140: || | AU140: Select Cable | AV140: 0 | AW140: 0 | AX140: 0 | AY140: 0 | AZ140: 0 | BA140: 0 | BB140: 0 | BF140: 0 | BH140: =CONCATENATE("(Z) ",$N$23) -> (Z) | BI140: 0 | BJ140: 0 | BL140: 132
AD141: 0 | AE141: || | AF141: 0 | AN141: 0 | AO141: 0 | AP141: 0 | AQ141: 0 | AS141: || | AU141: Select Cable | AV141: 0 | AW141: 0 | AX141: 0 | AY141: 0 | AZ141: 0 | BA141: 0 | BB141: 0 | BF141: =IF(BJ141>BJ140,BJ141,0) -> 0 | BH141: =CONCATENATE("(Z) ",$N$24) -> (Z) | BI141: 0 | BJ141: 0 | BL141: 133
AD142: 0 | AE142: || | AF142: 0 | AN142: 0 | AO142: 0 | AP142: 0 | AQ142: 0 | AS142: || | AU142: Select Cable | AV142: 0 | AW142: 0 | AX142: 0 | AY142: 0 | AZ142: 0 | BA142: 0 | BB142: 0 | BF142: 0 | BH142: =CONCATENATE("(Z) ",$N$25) -> (Z) | BI142: =IF(BH142="(Z) ", 0,1) -> 0 | BJ142: 0 | BL142: 134
AD143: 0 | AE143: || | AF143: 0 | AN143: 0 | AO143: 0 | AP143: 0 | AQ143: 0 | AS143: || | AU143: Select Cable | AV143: 0 | AW143: 0 | AX143: 0 | AY143: 0 | AZ143: 0 | BA143: 0 | BB143: 0 | BF143: 0 | BH143: =CONCATENATE("(Z) ",$N$26) -> (Z) | BI143: 0 | BJ143: 0 | BL143: 135
AD144: 0 | AE144: || | AF144: 0 | AN144: 0 | AO144: 0 | AP144: 0 | AQ144: 0 | AS144: || | AU144: Select Cable | AV144: 0 | AW144: 0 | AX144: 0 | AY144: 0 | AZ144: 0 | BA144: 0 | BB144: 0 | BF144: 0 | BH144: =CONCATENATE("(Z) ",$N$27) -> (Z) | BI144: 0 | BJ144: 0 | BL144: 136
AD145: 0 | AE145: || | AF145: 0 | AN145: 0 | AO145: 0 | AP145: 0 | AQ145: 0 | AS145: || | AU145: Select Cable | AV145: 0 | AW145: 0 | AX145: 0 | AY145: 0 | AZ145: 0 | BA145: 0 | BB145: 0 | BF145: 0 | BH145: =CONCATENATE("(Z) ",$N$28) -> (Z) | BI145: 0 | BJ145: 0 | BL145: 137
AD146: 0 | AE146: || | AF146: 0 | AN146: 0 | AO146: 0 | AP146: 0 | AQ146: 0 | AS146: || | AU146: Select Cable | AV146: 0 | AW146: 0 | AX146: 0 | AY146: 0 | AZ146: 0 | BA146: 0 | BB146: 0 | BF146: 0 | BH146: =CONCATENATE("(Z) ",$N$29) -> (Z) | BI146: 0 | BJ146: 0 | BL146: 138
AD147: 0 | AE147: || | AF147: 0 | AN147: 0 | AO147: 0 | AP147: 0 | AQ147: 0 | AS147: || | AU147: Select Cable | AV147: 0 | AW147: 0 | AX147: 0 | AY147: 0 | AZ147: 0 | BA147: 0 | BB147: 0 | BF147: 0 | BH147: =CONCATENATE("(Z) ",$N$30) -> (Z) | BI147: 0 | BJ147: 0 | BL147: 139
AD148: 0 | AE148: || | AF148: 0 | AN148: 0 | AO148: 0 | AP148: 0 | AQ148: 0 | AS148: || | AU148: Select Cable | AV148: 0 | AW148: 0 | AX148: 0 | AY148: 0 | AZ148: 0 | BA148: 0 | BB148: 0 | BF148: 0 | BH148: =CONCATENATE("(Z) ",$N$31) -> (Z) | BI148: 0 | BJ148: 0 | BL148: 140
AD149: 0 | AE149: || | AF149: 0 | AN149: 0 | AO149: 0 | AP149: 0 | AQ149: 0 | AS149: || | AU149: Select Cable | AV149: 0 | AW149: 0 | AX149: 0 | AY149: 0 | AZ149: 0 | BA149: 0 | BB149: 0 | BF149: 0 | BH149: =CONCATENATE("(Z) ",$O$19) -> (Z) | BI149: 0 | BJ149: 0 | BL149: 141
AD150: 0 | AE150: || | AF150: 0 | AN150: 0 | AO150: 0 | AP150: 0 | AQ150: 0 | AS150: || | AU150: Select Cable | AV150: 0 | AW150: 0 | AX150: 0 | AY150: 0 | AZ150: 0 | BA150: 0 | BB150: 0 | BF150: 0 | BH150: =CONCATENATE("(Z) ",$O$20) -> (Z) | BI150: 0 | BJ150: 0 | BL150: 142
AD151: 0 | AE151: || | AF151: 0 | AN151: 0 | AO151: 0 | AP151: 0 | AQ151: 0 | AS151: || | AU151: Select Cable | AV151: 0 | AW151: 0 | AX151: 0 | AY151: 0 | AZ151: 0 | BA151: 0 | BB151: 0 | BF151: 0 | BH151: =CONCATENATE("(Z) ",$O$21) -> (Z) | BI151: 0 | BJ151: 0 | BL151: 143
AD152: 0 | AE152: || | AF152: 0 | AN152: 0 | AO152: 0 | AP152: 0 | AQ152: 0 | AS152: || | AU152: Select Cable | AV152: 0 | AW152: 0 | AX152: 0 | AY152: 0 | AZ152: 0 | BA152: 0 | BB152: 0 | BF152: 0 | BH152: =CONCATENATE("(Z) ",$O$22) -> (Z) | BI152: 0 | BJ152: 0 | BL152: 144
AD153: 0 | AE153: || | AF153: 0 | AN153: 0 | AO153: 0 | AP153: 0 | AQ153: 0 | AS153: || | AU153: Select Cable | AV153: 0 | AW153: 0 | AX153: 0 | AY153: 0 | AZ153: 0 | BA153: 0 | BB153: 0 | BF153: 0 | BH153: =CONCATENATE("(Z) ",$O$23) -> (Z) | BI153: 0 | BJ153: 0 | BL153: 145
AD154: 0 | AE154: || | AF154: 0 | AN154: 0 | AO154: 0 | AP154: 0 | AQ154: 0 | AS154: || | AU154: Select Cable | AV154: 0 | AW154: 0 | AX154: 0 | AY154: 0 | AZ154: 0 | BA154: 0 | BB154: 0 | BF154: 0 | BH154: =CONCATENATE("(Z) ",$O$24) -> (Z) | BI154: 0 | BJ154: 0 | BL154: 146
AD155: 0 | AE155: || | AF155: 0 | AN155: 0 | AO155: 0 | AP155: 0 | AQ155: 0 | AS155: || | AU155: Select Cable | AV155: 0 | AW155: 0 | AX155: 0 | AY155: 0 | AZ155: 0 | BA155: 0 | BB155: 0 | BF155: 0 | BH155: =CONCATENATE("(Z) ",$O$25) -> (Z) | BI155: 0 | BJ155: 0 | BL155: 147
AD156: 0 | AE156: || | AF156: 0 | AN156: 0 | AO156: 0 | AP156: 0 | AQ156: 0 | AS156: || | AU156: Select Cable | AV156: 0 | AW156: 0 | AX156: 0 | AY156: 0 | AZ156: 0 | BA156: 0 | BB156: 0 | BF156: 0 | BH156: =CONCATENATE("(Z) ",$O$26) -> (Z) | BI156: 0 | BJ156: 0 | BL156: 148
AD157: 0 | AE157: || | AF157: 0 | AN157: 0 | AO157: 0 | AP157: 0 | AQ157: 0 | AS157: || | AU157: Select Cable | AV157: 0 | AW157: 0 | AX157: 0 | AY157: 0 | AZ157: 0 | BA157: 0 | BB157: 0 | BF157: 0 | BH157: =CONCATENATE("(Z) ",$O$27) -> (Z) | BI157: 0 | BJ157: 0 | BL157: 149
AD158: 0 | AE158: || | AF158: 0 | AN158: 0 | AO158: 0 | AP158: 0 | AQ158: 0 | AS158: || | AU158: Select Cable | AV158: 0 | AW158: 0 | AX158: 0 | AY158: 0 | AZ158: 0 | BA158: 0 | BB158: 0 | BF158: 0 | BH158: =CONCATENATE("(Z) ",$O$28) -> (Z) | BI158: 0 | BJ158: 0 | BL158: 150
AD159: 0 | AE159: || | AF159: 0 | AN159: 0 | AO159: 0 | AP159: 0 | AQ159: 0 | AS159: || | AU159: Select Cable | AV159: 0 | AW159: 0 | AX159: 0 | AY159: 0 | AZ159: 0 | BA159: 0 | BB159: 0 | BF159: 0 | BH159: =CONCATENATE("(Z) ",$O$29) -> (Z) | BI159: 0 | BJ159: 0 | BL159: 151
AD160: 0 | AE160: || | AF160: 0 | AN160: 0 | AO160: 0 | AP160: 0 | AQ160: 0 | AS160: || | AU160: Select Cable | AV160: 0 | AW160: 0 | AX160: 0 | AY160: 0 | AZ160: 0 | BA160: 0 | BB160: 0 | BF160: 0 | BH160: =CONCATENATE("(Z) ",$O$30) -> (Z) | BI160: 0 | BJ160: 0 | BL160: 152
AD161: 0 | AE161: || | AF161: 0 | AN161: 0 | AO161: 0 | AP161: 0 | AQ161: 0 | AS161: || | AU161: Select Cable | AV161: 0 | AW161: 0 | AX161: 0 | AY161: 0 | AZ161: 0 | BA161: 0 | BB161: 0 | BF161: 0 | BH161: =CONCATENATE("(Z) ",$O$31) -> (Z) | BI161: 0 | BJ161: 0 | BL161: 153
AD162: 0 | AE162: || | AF162: 0 | AN162: 0 | AO162: 0 | AP162: 0 | AQ162: 0 | AS162: || | AU162: Select Cable | AV162: 0 | AW162: 0 | AX162: 0 | AY162: 0 | AZ162: 0 | BA162: 0 | BB162: 0 | BF162: 0 | BH162: =CONCATENATE("(Z) ",$P$20) -> (Z) | BI162: 0 | BJ162: 0 | BL162: 154
AD163: 0 | AE163: || | AF163: 0 | AN163: 0 | AO163: 0 | AP163: 0 | AQ163: 0 | AS163: || | AU163: Select Cable | AV163: 0 | AW163: 0 | AX163: 0 | AY163: 0 | AZ163: 0 | BA163: 0 | BB163: 0 | BF163: 0 | BH163: =CONCATENATE("(Z) ",$P$21) -> (Z) | BI163: 0 | BJ163: 0 | BL163: 155
AD164: 0 | AE164: || | AF164: 0 | AN164: 0 | AO164: 0 | AP164: 0 | AQ164: 0 | AS164: || | AU164: Select Cable | AV164: 0 | AW164: 0 | AX164: 0 | AY164: 0 | AZ164: 0 | BA164: 0 | BB164: 0 | BF164: 0 | BH164: =CONCATENATE("(Z) ",$P$22) -> (Z) | BI164: 0 | BJ164: 0 | BL164: 156
AD165: 0 | AE165: || | AF165: 0 | AN165: 0 | AO165: 0 | AP165: 0 | AQ165: 0 | AS165: || | AU165: Select Cable | AV165: 0 | AW165: 0 | AX165: 0 | AY165: 0 | AZ165: 0 | BA165: 0 | BB165: 0 | BF165: 0 | BH165: =CONCATENATE("(Z) ",$P$23) -> (Z) | BI165: 0 | BJ165: 0 | BL165: 157
AD166: 0 | AE166: || | AF166: 0 | AN166: 0 | AO166: 0 | AP166: 0 | AQ166: 0 | AS166: || | AU166: Select Cable | AV166: 0 | AW166: 0 | AX166: 0 | AY166: 0 | AZ166: 0 | BA166: 0 | BB166: 0 | BF166: 0 | BH166: =CONCATENATE("(Z) ",$P$24) -> (Z) | BI166: 0 | BJ166: 0 | BL166: 158
AD167: 0 | AE167: || | AF167: 0 | AN167: 0 | AO167: 0 | AP167: 0 | AQ167: 0 | AS167: || | AU167: Select Cable | AV167: 0 | AW167: 0 | AX167: 0 | AY167: 0 | AZ167: 0 | BA167: 0 | BB167: 0 | BF167: 0 | BH167: =CONCATENATE("(Z) ",$P$25) -> (Z) | BI167: 0 | BJ167: 0 | BL167: 159
AD168: 0 | AE168: || | AF168: 0 | AN168: 0 | AO168: 0 | AP168: 0 | AQ168: 0 | AS168: || | AU168: Select Cable | AV168: 0 | AW168: 0 | AX168: 0 | AY168: 0 | AZ168: 0 | BA168: 0 | BB168: 0 | BF168: 0 | BH168: =CONCATENATE("(Z) ",$P$26) -> (Z) | BI168: 0 | BJ168: 0 | BL168: 160
AD169: 0 | AE169: || | AF169: 0 | AN169: 0 | AO169: 0 | AP169: 0 | AQ169: 0 | AS169: || | AU169: Select Cable | AV169: 0 | AW169: 0 | AX169: 0 | AY169: 0 | AZ169: 0 | BA169: 0 | BB169: 0 | BF169: 0 | BH169: =CONCATENATE("(Z) ",$P$27) -> (Z) | BI169: 0 | BJ169: 0 | BL169: 161
AD170: 0 | AE170: || | AF170: 0 | AN170: 0 | AO170: 0 | AP170: 0 | AQ170: 0 | AS170: || | AU170: Select Cable | AV170: 0 | AW170: 0 | AX170: 0 | AY170: 0 | AZ170: 0 | BA170: 0 | BB170: 0 | BF170: 0 | BH170: =CONCATENATE("(Z) ",$P$28) -> (Z) | BI170: 0 | BJ170: 0 | BL170: 162
AD171: 0 | AE171: || | AF171: 0 | AN171: 0 | AO171: 0 | AP171: 0 | AQ171: 0 | AS171: || | AU171: Select Cable | AV171: 0 | AW171: 0 | AX171: 0 | AY171: 0 | AZ171: 0 | BA171: 0 | BB171: 0 | BF171: 0 | BH171: =CONCATENATE("(Z) ",$P$29) -> (Z) | BI171: 0 | BJ171: 0 | BL171: 163
AD172: 0 | AE172: || | AF172: 0 | AN172: 0 | AO172: 0 | AP172: 0 | AQ172: 0 | AS172: || | AU172: Select Cable | AV172: 0 | AW172: 0 | AX172: 0 | AY172: 0 | AZ172: 0 | BA172: 0 | BB172: 0 | BF172: 0 | BH172: =CONCATENATE("(Z) ",$P$30) -> (Z) | BI172: 0 | BJ172: 0 | BL172: 164
AD173: 0 | AE173: || | AF173: 0 | AN173: 0 | AO173: 0 | AP173: 0 | AQ173: 0 | AS173: || | AU173: Select Cable | AV173: 0 | AW173: 0 | AX173: 0 | AY173: 0 | AZ173: 0 | BA173: 0 | BB173: =IF(AND(AS137<>"||",OR(AV137=0,AW137=0,AY137=0,AZ137=0))," !",0) -> 0 | BF173: 0 | BH173: =CONCATENATE("(Z) ",$P$31) -> (Z) | BI173: 0 | BJ173: 0 | BL173: 165
AD174: 0 | AE174: || | AF174: 0 | AN174: 0 | AO174: 0 | AP174: 0 | AQ174: 0 | AS174: || | AU174: Select Cable | AV174: 0 | AW174: 0 | AX174: 0 | AY174: 0 | AZ174: 0 | BA174: 0 | BB174: 0 | BF174: 0 | BH174: =CONCATENATE("(Z) ",$Q$21) -> (Z) | BI174: 0 | BJ174: 0 | BL174: 166
AD175: 0 | AE175: || | AF175: 0 | AN175: 0 | AO175: 0 | AP175: 0 | AQ175: 0 | AS175: || | AU175: Select Cable | AV175: 0 | AW175: 0 | AX175: 0 | AY175: 0 | AZ175: 0 | BA175: 0 | BB175: 0 | BF175: 0 | BH175: =CONCATENATE("(Z) ",$Q$22) -> (Z) | BI175: 0 | BJ175: 0 | BL175: 167
AD176: 0 | AE176: || | AF176: 0 | AN176: 0 | AO176: 0 | AP176: 0 | AQ176: 0 | AS176: || | AU176: Select Cable | AV176: 0 | AW176: 0 | AX176: 0 | AY176: 0 | AZ176: 0 | BA176: 0 | BB176: 0 | BF176: 0 | BH176: =CONCATENATE("(Z) ",$Q$23) -> (Z) | BI176: 0 | BJ176: 0 | BL176: 168
AD177: 0 | AE177: || | AF177: 0 | AN177: 0 | AO177: 0 | AP177: 0 | AQ177: 0 | AS177: || | AU177: Select Cable | AV177: 0 | AW177: 0 | AX177: 0 | AY177: 0 | AZ177: 0 | BA177: 0 | BB177: 0 | BF177: 0 | BH177: =CONCATENATE("(Z) ",$Q$24) -> (Z) | BI177: 0 | BJ177: 0 | BL177: 169
AD178: 0 | AE178: || | AF178: 0 | AN178: 0 | AO178: 0 | AP178: 0 | AQ178: 0 | AS178: || | AU178: Select Cable | AV178: 0 | AW178: 0 | AX178: 0 | AY178: 0 | AZ178: 0 | BA178: 0 | BB178: 0 | BF178: 0 | BH178: =CONCATENATE("(Z) ",$Q$25) -> (Z) | BI178: 0 | BJ178: 0 | BL178: 170
AD179: 0 | AE179: || | AF179: 0 | AN179: 0 | AO179: 0 | AP179: 0 | AQ179: 0 | AS179: || | AU179: Select Cable | AV179: 0 | AW179: 0 | AX179: 0 | AY179: 0 | AZ179: 0 | BA179: 0 | BB179: 0 | BF179: 0 | BH179: =CONCATENATE("(Z) ",$Q$26) -> (Z) | BI179: 0 | BJ179: 0 | BL179: 171
AD180: 0 | AE180: || | AF180: 0 | AN180: 0 | AO180: 0 | AP180: 0 | AQ180: 0 | AS180: || | AU180: Select Cable | AV180: 0 | AW180: 0 | AX180: 0 | AY180: 0 | AZ180: 0 | BA180: 0 | BB180: 0 | BF180: 0 | BH180: =CONCATENATE("(Z) ",$Q$27) -> (Z) | BI180: 0 | BJ180: 0 | BL180: 172
AD181: 0 | AE181: || | AF181: 0 | AN181: 0 | AO181: 0 | AP181: 0 | AQ181: 0 | AS181: || | AU181: Select Cable | AV181: 0 | AW181: 0 | AX181: 0 | AY181: 0 | AZ181: 0 | BA181: 0 | BB181: 0 | BF181: 0 | BH181: =CONCATENATE("(Z) ",$Q$28) -> (Z) | BI181: 0 | BJ181: 0 | BL181: 173
AD182: 0 | AE182: || | AF182: 0 | AN182: 0 | AO182: 0 | AP182: 0 | AQ182: 0 | AS182: || | AU182: Select Cable | AV182: 0 | AW182: 0 | AX182: 0 | AY182: 0 | AZ182: 0 | BA182: 0 | BB182: 0 | BF182: 0 | BH182: =CONCATENATE("(Z) ",$Q$29) -> (Z) | BI182: 0 | BJ182: 0 | BL182: 174
AD183: 0 | AE183: || | AF183: 0 | AN183: 0 | AO183: 0 | AP183: 0 | AQ183: 0 | AS183: || | AU183: Select Cable | AV183: 0 | AW183: 0 | AX183: 0 | AY183: 0 | AZ183: 0 | BA183: 0 | BB183: 0 | BF183: 0 | BH183: =CONCATENATE("(Z) ",$Q$30) -> (Z) | BI183: 0 | BJ183: 0 | BL183: 175
AD184: 0 | AE184: || | AF184: 0 | AN184: 0 | AO184: 0 | AP184: 0 | AQ184: 0 | AS184: || | AU184: Select Cable | AV184: 0 | AW184: 0 | AX184: 0 | AY184: 0 | AZ184: 0 | BA184: 0 | BB184: 0 | BF184: 0 | BH184: =CONCATENATE("(Z) ",$Q$31) -> (Z) | BI184: 0 | BJ184: 0 | BL184: 176
AD185: 0 | AE185: || | AF185: 0 | AN185: 0 | AO185: 0 | AP185: 0 | AQ185: 0 | AS185: || | AU185: Select Cable | AV185: 0 | AW185: 0 | AX185: 0 | AY185: 0 | AZ185: 0 | BA185: 0 | BB185: 0 | BF185: 0 | BH185: =CONCATENATE("(Z) ",$R$22) -> (Z) | BI185: 0 | BJ185: 0 | BL185: 177
AD186: 0 | AE186: || | AF186: 0 | AN186: 0 | AO186: 0 | AP186: 0 | AQ186: 0 | AS186: || | AU186: Select Cable | AV186: 0 | AW186: 0 | AX186: 0 | AY186: 0 | AZ186: 0 | BA186: 0 | BB186: 0 | BF186: 0 | BH186: =CONCATENATE("(Z) ",$R$23) -> (Z) | BI186: 0 | BJ186: 0 | BL186: 178
AD187: 0 | AE187: || | AF187: 0 | AN187: 0 | AO187: 0 | AP187: 0 | AQ187: 0 | AS187: || | AU187: Select Cable | AV187: 0 | AW187: 0 | AX187: 0 | AY187: 0 | AZ187: 0 | BA187: 0 | BB187: 0 | BF187: 0 | BH187: =CONCATENATE("(Z) ",$R$24) -> (Z) | BI187: 0 | BJ187: 0 | BL187: 179
AD188: 0 | AE188: || | AF188: 0 | AN188: 0 | AO188: 0 | AP188: 0 | AQ188: 0 | AS188: || | AU188: Select Cable | AV188: 0 | AW188: 0 | AX188: 0 | AY188: 0 | AZ188: 0 | BA188: 0 | BB188: 0 | BF188: 0 | BH188: =CONCATENATE("(Z) ",$R$25) -> (Z) | BI188: 0 | BJ188: 0 | BL188: 180
AD189: 0 | AE189: || | AF189: 0 | AN189: 0 | AO189: 0 | AP189: 0 | AQ189: 0 | AS189: || | AU189: Select Cable | AV189: 0 | AW189: 0 | AX189: 0 | AY189: 0 | AZ189: 0 | BA189: 0 | BB189: 0 | BF189: 0 | BH189: =CONCATENATE("(Z) ",$R$26) -> (Z) | BI189: 0 | BJ189: 0 | BL189: 181
AD190: 0 | AE190: || | AF190: 0 | AN190: 0 | AO190: 0 | AP190: 0 | AQ190: 0 | AS190: || | AU190: Select Cable | AV190: 0 | AW190: 0 | AX190: 0 | AY190: 0 | AZ190: 0 | BA190: 0 | BB190: 0 | BF190: 0 | BH190: =CONCATENATE("(Z) ",$R$27) -> (Z) | BI190: 0 | BJ190: 0 | BL190: 182
AD191: 0 | AE191: || | AF191: 0 | AN191: 0 | AO191: 0 | AP191: 0 | AQ191: 0 | AS191: || | AU191: Select Cable | AV191: 0 | AW191: 0 | AX191: 0 | AY191: 0 | AZ191: 0 | BA191: 0 | BB191: 0 | BF191: 0 | BH191: =CONCATENATE("(Z) ",$R$28) -> (Z) | BI191: 0 | BJ191: 0 | BL191: 183
AD192: 0 | AE192: || | AF192: 0 | AN192: 0 | AO192: 0 | AP192: 0 | AQ192: 0 | AS192: || | AU192: Select Cable | AV192: 0 | AW192: 0 | AX192: 0 | AY192: 0 | AZ192: 0 | BA192: 0 | BB192: 0 | BF192: 0 | BH192: =CONCATENATE("(Z) ",$R$29) -> (Z) | BI192: 0 | BJ192: 0 | BL192: 184
AD193: 0 | AE193: || | AF193: 0 | AN193: 0 | AO193: 0 | AP193: 0 | AQ193: 0 | AS193: || | AU193: Select Cable | AV193: 0 | AW193: 0 | AX193: 0 | AY193: 0 | AZ193: 0 | BA193: 0 | BB193: 0 | BF193: 0 | BH193: =CONCATENATE("(Z) ",$R$30) -> (Z) | BI193: 0 | BJ193: 0 | BL193: 185
AD194: 0 | AE194: || | AF194: 0 | AN194: 0 | AO194: 0 | AP194: 0 | AQ194: 0 | AS194: || | AU194: Select Cable | AV194: 0 | AW194: 0 | AX194: 0 | AY194: 0 | AZ194: 0 | BA194: 0 | BB194: 0 | BF194: 0 | BH194: =CONCATENATE("(Z) ",$R$31) -> (Z) | BI194: 0 | BJ194: 0 | BL194: 186
AD195: 0 | AE195: || | AF195: 0 | AN195: 0 | AO195: 0 | AP195: 0 | AQ195: 0 | AS195: || | AU195: Select Cable | AV195: 0 | AW195: 0 | AX195: 0 | AY195: 0 | AZ195: 0 | BA195: 0 | BB195: 0 | BF195: 0 | BH195: =CONCATENATE("(Z) ",$S$23) -> (Z) | BI195: 0 | BJ195: 0 | BL195: 187
AD196: 0 | AE196: || | AF196: 0 | AN196: 0 | AO196: 0 | AP196: 0 | AQ196: 0 | AS196: || | AU196: Select Cable | AV196: 0 | AW196: 0 | AX196: 0 | AY196: 0 | AZ196: 0 | BA196: 0 | BB196: 0 | BF196: 0 | BH196: =CONCATENATE("(Z) ",$S$24) -> (Z) | BI196: 0 | BJ196: 0 | BL196: 188
AD197: 0 | AE197: || | AF197: 0 | AN197: 0 | AO197: 0 | AP197: 0 | AQ197: 0 | AS197: || | AU197: Select Cable | AV197: 0 | AW197: 0 | AX197: 0 | AY197: 0 | AZ197: 0 | BA197: 0 | BB197: 0 | BF197: 0 | BH197: =CONCATENATE("(Z) ",$S$25) -> (Z) | BI197: 0 | BJ197: 0 | BL197: 189
AD198: 0 | AE198: || | AF198: 0 | AN198: 0 | AO198: 0 | AP198: 0 | AQ198: 0 | AS198: || | AU198: Select Cable | AV198: 0 | AW198: 0 | AX198: 0 | AY198: 0 | AZ198: 0 | BA198: 0 | BB198: 0 | BF198: 0 | BH198: =CONCATENATE("(Z) ",$S$26) -> (Z) | BI198: 0 | BJ198: 0 | BL198: 190
AD199: 0 | AE199: || | AF199: 0 | AN199: 0 | AO199: 0 | AP199: 0 | AQ199: 0 | AS199: || | AU199: Select Cable | AV199: 0 | AW199: 0 | AX199: 0 | AY199: 0 | AZ199: 0 | BA199: 0 | BB199: 0 | BF199: 0 | BH199: =CONCATENATE("(Z) ",$S$27) -> (Z) | BI199: 0 | BJ199: 0 | BL199: 191
AD200: 0 | AE200: || | AF200: 0 | AN200: 0 | AO200: 0 | AP200: 0 | AQ200: 0 | AS200: || | AU200: Select Cable | AV200: 0 | AW200: 0 | AX200: 0 | AY200: 0 | AZ200: 0 | BA200: 0 | BB200: 0 | BF200: 0 | BH200: =CONCATENATE("(Z) ",$S$28) -> (Z) | BI200: 0 | BJ200: 0 | BL200: 192
AD201: 0 | AE201: || | AF201: 0 | AN201: 0 | AO201: 0 | AP201: 0 | AQ201: 0 | AS201: =AE201 -> || | AU201: Select Cable | AV201: =VLOOKUP($AU201,$BN$8:$BV$37,2,0)*($AT201/1000)*(100/$AY$6^2) -> 0 | AW201: =VLOOKUP($AU201,$BN$8:$BV$37,3,0)*($AT201/1000)*(100/$AY$6^2) -> 0 | AX201: =VLOOKUP($AU201,$BN$8:$BV$37,4,0)*(120*PI()*0.000001)*($AY$6^2/100)*($AT201/1000) -> 0 | AY201: =VLOOKUP($AU201,$BN$8:$BV$37,5,0)*($AT201/1000)*(100/$AY$6^2) -> 0 | AZ201: =VLOOKUP($AU201,$BN$8:$BV$37,6,0)*($AT201/1000)*(100/$AY$6^2) -> 0 | BA201: =VLOOKUP($AU201,$BN$8:$BV$37,7,0)*(120*PI()*0.000001)*($AY$6^2/100)*($AT201/1000) -> 0 | BB201: 0 | BF201: 0 | BH201: =CONCATENATE("(Z) ",$S$29) -> (Z) | BI201: 0 | BJ201: 0 | BL201: 193
... 72 more rows
